{"text_format":"1","workbook":"xlsx","n_sheets":25,"sheets":["Cover Page","Contents","Facility Info","Operational Data","Operational Summary","Perf. Form 1","Energy Form 1","Permit Compliance","Improvements","Public Liasion","CO2 N2O","Residue Quality ","Water","Air (periodic)","Air (CEMS)","HCl","SO2","NOx","TOC","Particulates","CO 0.5 hourly","CO 95% 10 min","NH3","Template changes log","Sheet1"],"not_rendered":{"charts":8,"images":3,"macros":0,"external_links":0,"defined_names":23,"comments":0,"pivot_tables":0},"unopened":[],"bounds":{"document_bytes":16777216,"sheet_cells":100000,"rows_first":2000,"rows_last":500,"rows_between":2000,"halvings":0,"cell_chars":16384,"cell_head_chars":4096},"cells_cut":0,"cells_raw":0,"read":"whole","date_system":"1900"}

{"sheet":"Cover Page","index":0,"n_rows":53,"n_cols":14,"rows_kept":53,"cut":false,"hidden":false,"merged":[[13,13,18,15],[34,1,34,8],[0,3,5,6],[7,1,23,8],[28,1,28,8],[30,1,30,8],[32,1,32,8],[48,6,48,8],[52,2,52,3],[36,1,36,8],[40,2,40,8],[42,2,42,4],[44,2,44,4],[46,6,46,8],[46,2,46,4],[48,2,48,4]]}
[null,null,null,"Add company logo"]
[null,null,null,null,null,null,null,null,null,null,null,null,null,"Version 24.2a (for incinerators) - 27/11/24"]
[]
[null,null,null,null,null,null,null,null,null,null,null,null,null,"Note that there is another version of this template available for co-incinerators"]
[]
[]
[]
[null,"Add photo"]
[]
[]
[]
[]
[null,null,null,null,null,null,null,null,null,null,null,null,null,"Notes:"]
[null,null,null,null,null,null,null,null,null,null,null,null,null,"This template may require adjustments by individual operators to meet specific reporting requirements as defined in the site Permit(s)"]
[]
[]
[]
[]
[]
[]
[]
[]
[]
[]
[]
[]
[]
[]
[null,"Annual Performance Report 2024"]
[]
[null,"Permit EPR/JP3135DK"]
[]
[null,"Kemsley Generating Station"]
[]
[null,"K3 CHP"]
[]
[null,"enfinium K3 CHP Operations Limited"]
[]
[null,"Year:",2024]
[]
[null,"Address:","Barge Way, Sittingbourne, Kent, ME10 2FP"]
[]
[null,"Tel: "]
[]
[null,"Email: ","luke.clothier@enfinium.co.uk"]
[]
[null,"Prepared by:","Luke Clothier",null,null,"Position:","Environmental Officer"]
[]
[null,"Approved by:","Stuart Kirk",null,null,"Position:","Plant Manager"]
[]
[null,"Version:",1]
[]
[null,"Issue Date:","28/01/2024"]

{"sheet":"Contents","index":1,"n_rows":45,"n_cols":8,"rows_kept":45,"cut":false,"hidden":false,"merged":[[8,1,8,6],[3,1,3,6],[4,1,4,6],[5,1,5,6],[6,1,6,6],[7,1,7,6],[21,1,21,6],[9,1,9,6],[10,1,10,6],[11,1,11,6],[13,1,13,6],[14,1,14,6],[15,1,15,6],[16,1,16,6],[17,1,17,6],[18,1,18,6],[19,1,19,6],[20,1,20,6],[12,1,12,6],[36,1,36,6],[22,1,22,6],[23,1,23,6],[24,1,24,6],[27,1,27,6],[28,1,28,6],[29,1,29,6],[30,1,30,6],[31,1,31,6],[32,1,32,6],[35,1,35,6],[44,0,47,9],[37,1,37,6],[38,1,38,6],[39,1,39,6],[40,1,40,6],[41,1,41,6],[42,1,42,6]]}
[{"$f":"+'Cover Page'!$B$29","v":"Annual Performance Report 2024"},null,null,null,{"$f":"+'Cover Page'!$B$33","v":"Kemsley Generating Station"}]
[]
["Contents"]
["Section","Subject",null,null,null,null,null,"Page "]
[1,"Facility Information",null,null,null,null,null,3]
[2,"Operational Data",null,null,null,null,null,4]
[3,"Operational Summary",null,null,null,null,null,5]
[4,"Performance Form 1",null,null,null,null,null,6]
[5,"Energy Form 1",null,null,null,null,null,7]
[6,"Permit Compliance",null,null,null,null,null,8]
[7,"Improvements",null,null,null,null,null,9]
[8,"Public Liaison",null,null,null,null,null,10]
[9,"Carbon dioxide and nitrous oxide emissions",null,null,null,null,null,11]
[10,"Residue Quality ",null,null,null,null,null,12]
[11,"Emissions to Water",null,null,null,null,null,13]
[12,"Emissions to Air (periodically monitored)",null,null,null,null,null,14]
[13,"Emissions to Air (continuously monitored)",null,null,null,null,null,15]
[14,"Hydrogen Chloride emissions",null,null,null,null,null,16]
[15,"Sulphur Dioxide emissions",null,null,null,null,null,17]
[16,"Oxides of Nitrogen emissions",null,null,null,null,null,18]
[17,"Total Organic Carbon emissions",null,null,null,null,null,19]
[18,"Particulate Matter emissions",null,null,null,null,null,20]
[19,"Carbon Monoxide emissions",null,null,null,null,null,22]
[20,"Ammonia emissions",null,null,null,null,null,23]
[]
[]
["Version Control"]
["Section","Information",null,null,null,null,null,"Date"]
["All","Final Report Version 1",null,null,null,null,null,"2025-01-28"]
[]
[]
[]
[]
[]
["Distribution"]
["Copy","Name, Role",null,null,null,null,null,"No."]
[null,"InstallationsKSLES@environment-agency.gov.uk - Regulator (EA) "]
[null,"John.Tollervey@environment-agency.gov.uk - Senior Technical Specialist (EA)"]
[null,"Stuart.Kirk@enfnium.co.uk Plant manager"]
[null,"Fiona.Gormley@enfinium.co.uk - Quality Manager "]
[null,"Luke.Clothier@enfinium.co.uk - Environmental Officer"]
[null,"Dean.Collier@enfinium.co.uk - operations manager"]
[]
[]
["This report is required under the Industrial Emissions Directive’s Article 55(2) requirements on reporting and public information on waste incineration plants and co-incineration plants, which require the operator to produce an annual report on the functioning and monitoring of the plant and make it available to the public. "]

{"sheet":"Facility Info","index":2,"n_rows":22,"n_cols":5,"rows_kept":22,"cut":false,"hidden":false,"merged":[[4,0,17,8],[21,0,53,8]]}
[{"$f":"+'Cover Page'!$B$29","v":"Annual Performance Report 2024"},null,null,null,{"$f":"+'Cover Page'!$B$33","v":"Kemsley Generating Station"}]
[]
["Plant Description and Design"]
[]
["\"The Kemsley Energy Recovery Facility (ERF) forms part of the Kemsley Paper Mill installation comprising of the DS Smith Kemsley Paper Mill and the E.On combined heat and power facility. It is located at grid reference 592170,166640 to the east of Kemsley, 3 km north of Sittingbourne and 2.5 km south east of Iwade.\n\nThe installation consists of two combustion lines and processes up to 657,000 tonnes of residual waste per annum (tpa); primarily commercial and industrial (C&I) waste and residual Municipal Solid Waste (MSW) which is collected and delivered by external waste management companies.  \n\nEnergy is recovered in the process by utilising the steam generated in the boiler to drive a turbine to generate electricity. Approximately 45MW of electricity can be exported to grid per hour and 55MWth per hour of steam can be supplied to neighbouring businesses (the paper mill when it is running at capacity). Recyclable materials in the form of incinerator bottom ash (IBA) and metals from the IBA are also recovered from the process. \n\nThe existing permit (Permit number EPR/JP3135DK) allows the facility to accept municipal, industrial and commercial waste and undertake the following activities:\n•\tReceipt and storage of waste pending processing;\n•\tElectricity and steam generation; and\n•\tDisposal of waste arising (incinerator bottom ash (IBA) and air pollution control residues (APCR).\"\t\t\t\t\t\t\t\t\n\t\t\t\t\t\t\t\t\n\t\t\t\t\t\t\t\t\n\t\t\t\t\t\t\t\t\n\t\t\t\t\t\t\t\t\n\t\t\t\t\t\t\t\t\n\t\t\t\t\t\t\t\t\n\t\t\t\t\t\t\t\t\n\t\t\t\t\t\t\t\t\n\t\t\t\t\t\t\t\t\n\t\t\t\t\t\t\t\t\n\t\t\t\t\t\t\t\t\n\t\t\t\t\t\t\t\t\n\t\t\t\t\t\t\t\t"]
[]
[]
[]
[]
[]
[]
[]
[]
[]
[]
[]
[]
[]
[]
["Summary of Operational Processes and Procedures"]
[]
["\"Municipal solid wastes and commercial wastes accepted at the installation are delivered in covered vehicles or containers. All vehicles delivering the waste are weighed in at the weighbridge before entering the Tipping Hall and being allowed to discharge waste.\n\nThe residual waste is discharged onto the tipping hall floor and pushed into the bunker using mobile plant and is utilised as feedstock for the ERF. The waste in the bunker is mixed with a crane to create a homogenous feedstock and to prevent anaerobic conditions and hence odour.\n\nWaste is loaded into the incinerator, using the crane, via the feed hopper. The facility processes waste using air cooled, moving grate technology. The grate is split into 5 zones; zone 1 is the drying zone; 2-3 are the main combustion zones and 4-5 are the burn out zones. Primary and secondary air supply is controlled to ensure good combustion conditions, additional support in combustion is provided through tertiary air injection. A temperature of at least 850°C for at least 2 seconds (T2S) is achieved.\n\nAfter the waste has been burned the remaining unburnt material, called incinerator bottom ash (IBA) is quenched in water. The bottom ash is transported by conveyor to an indoor storage area. The IBA is stored here until it is sent off site to a suitably licensed waste treatment facility for re-processing/recovery.\n\nThe flue gas is treated within the dry Flue Gas Treatment (FGT) system to reduce the level of pollutants emitted and to comply with the requirements of the Industrial Emissions Directive (IED) and the Environmental Permit. Oxides of Nitrogen (NOx) are abated using dry urea; acid gases such as Hydrogen Chloride (HCl) and Sulphur Dioxins (SO2) are abated using hydrated lime injection. For dioxins and mercury, Powdered Activated Carbon (PAC) abatement is used. Fabric bag filters are utilised for the abatement of particulate matter and also to collect the by-products from both reactions known as Air Pollution Control Residue (APCR) which is transferred to a silo then to a tanker (or sealed bags are sometimes used) for removal from the facility and disposal at a suitably licenced premises. \n\nFollowing clean up, the flue gas is emitted to air through the 90m high stack. The flue gases entering the stack are continuously monitored for HCl, SO2, TOC, CO, NOx, NH3 and Particulates against limits as laid down in the Environmental Permit.\n\nThe heat from the combustion process is used to turn water into high-pressure steam, that steam then powers a turbine to generate electricity for internal use and for export to the National Grid. The facility also has combined heat and power (CHP) capability and supplies the adjacent DS Smith paper mill with steam. Spent steam from the turbine is converted back to condensate in an air-cooled condenser, which feeds back into the condensate tank. The facility is designed to export approximately 45MW of electricity (permitted electrical generation capacity of 74MWe) to the grid, and 55 MWth of steam (permitted heat export capacity of 204 MWth) to the paper mill when it is running at capacity.\n\nThe facility is certified to ISO 45001, 9001 and 14001 and operates an accredited Management System housing the processes and procedures to be followed. The facility has procedures in place including emergency procedures, operating instructions, method statements and risk assessments. All health, safety and environmental incidents, events and resulting investigations and actions are managed within the companies EHS reporting system.\n\nThe facility has a Computer Maintenance Management System (CMMS) in place housing all maintenance tasks and defect reporting. Planned outages take place at specified intervals to allow for boiler cleaning, statutory and essential maintenance to maintain plant reliability and efficiency.\"\t\t\t\t\t\t\t\t\n\t\t\t\t\t\t\t\t\n\t\t\t\t\t\t\t\t\n\t\t\t\t\t\t\t\t\n\t\t\t\t\t\t\t\t\n\t\t\t\t\t\t\t\t\n\t\t\t\t\t\t\t\t\n\t\t\t\t\t\t\t\t\n\t\t\t\t\t\t\t\t\n\t\t\t\t\t\t\t\t\n\t\t\t\t\t\t\t\t\n\t\t\t\t\t\t\t\t\n\t\t\t\t\t\t\t\t\n\t\t\t\t\t\t\t\t\n\t\t\t\t\t\t\t\t\n\t\t\t\t\t\t\t\t\n\t\t\t\t\t\t\t\t\n\t\t\t\t\t\t\t\t\n\t\t\t\t\t\t\t\t\n\t\t\t\t\t\t\t\t\n\t\t\t\t\t\t\t\t\n\t\t\t\t\t\t\t\t\n\t\t\t\t\t\t\t\t\n\t\t\t\t\t\t\t\t\n\t\t\t\t\t\t\t\t\n\t\t\t\t\t\t\t\t\n\t\t\t\t\t\t\t\t\n\t\t\t\t\t\t\t\t\n\t\t\t\t\t\t\t\t\n\t\t\t\t\t\t\t\t\n\t\t\t\t\t\t\t\t\n\t\t\t\t\t\t\t\t\n\t\t\t\t\t\t\t\t"]

{"sheet":"Operational Data","index":3,"n_rows":61,"n_cols":9,"rows_kept":61,"cut":false,"hidden":false,"merged":[[53,0,54,0],[33,1,39,1],[3,1,3,2],[7,1,19,1],[23,1,26,1],[28,1,29,1]]}
[{"$f":"+'Cover Page'!$B$29","v":"Annual Performance Report 2024"},null,null,null,{"$f":"+'Cover Page'!$B$33","v":"Kemsley Generating Station"}]
[]
["Operational Data"]
["Plant Size",657000,null,"tonnes pa",55,"MWth",45,"MWe"]
["No. of combustion lines",2,null,"No. of Turbines:",null,1]
[]
["Waste types received","Unit","Q1","Q2","Q3","Q4","Year Total","%"]
["Household / Local Authority","tonnes",73025.509999999995,83821.179999999993,79125.62,99075.452000000005,{"$f":"SUM(C8:F8)","v":335047.76199999999},{"$f":"IF(G8>0,G8/$G$18,\"-\")","v":0.564962859948412}]
["Commercial & Industrial ",null,23984.74,24134.240000000002,26853.759999999998,25240.18,{"$f":"SUM(C9:F9)","v":100212.92000000001},0.16898061801404132]
["Hazardous ",null,null,null,null,null,0,"-"]
["Clinical",null,null,null,null,null,0,"-"]
["Waste wood (biomass) ",null,null,null,null,null,0,"-"]
["Refuse Derived Fuel * - H'hold/LA",null,null,null,null,null,{"$f":"SUM(C13:F13)","v":0},"-"]
["Refuse Derived Fuel *  - C&I",null,45067.9,43483.16,38405.949999999997,30826.18,157783.19,0.26605652203754665]
["Other [Please specify]",null,null,null,null,null,0,"-"]
["Other [Please specify]",null,null,null,null,null,0,"-"]
["Other [Please specify]",null,null,null,null,null,0,"-"]
["Total waste received",null,{"$f":"SUM(C8:C17)","v":142078.15},{"$f":"SUM(D8:D17)","v":151438.58000000002},{"$f":"SUM(E8:E17)","v":144385.32999999999},{"$f":"SUM(F8:F17)","v":155141.81200000001},593043.87199999997]
["Rejected Waste ",null,null,null,null,null,{"$f":"SUM(C19:F19)","v":0},{"$f":"IF(G19>0,G19/$G$18,\"-\")","v":"-"}]
["Unprocessed waste transferred out",null,null,null,null,null,{"$f":"SUM(C20:F20)","v":0},{"$f":"IF(G20>0,G20/$G$18,\"-\")","v":"-"}]
["Total waste combusted **",null,144901,149838,145079,157534,{"$f":"SUM(C21:F21)","v":597352}]
[]
["Energy Usage / Export","Unit","Q1","Q2","Q3","Q4","Year Total","KWh/te"]
["Power Generated","MWh",94440,103858,108730,108441,{"$f":"SUM(C24:F24)","v":415469},{"$f":"IF(G24>0,G24*1000/$G$21,\"-\")","v":695.5178856017892}]
["Power Exported",null,83136,91684,95974,96361,{"$f":"SUM(C25:F25)","v":367155},{"$f":"IF(G25>0,G25*1000/$G$21,\"-\")","v":614.63760061069524}]
["Power Used on site",null,11496,12309.357910000001,12976.262210000001,12193.879370000001,{"$f":"SUM(C26:F26)","v":48975.499490000002},{"$f":"IF(G26>0,G26*1000/$G$21,\"-\")","v":81.987671406473908}]
["Power Imported",null,192,135,220,114,661,{"$f":"IF(G27>0,G27*1000/$G$21,\"-\")","v":1.1065502417335173}]
["Parasitic Load","%",{"$f":"IF(C24>0,1-C25/(C24+C27),\"-\")","v":0.12148110575703774},{"$f":"IF(D24>0,1-D25/(D24+D27),\"-\")","v":0.11836373602069372},{"$f":"IF(E24>0,1-E25/(E24+E27),\"-\")","v":0.11910050481872414},{"$f":"IF(F24>0,1-F25/(F24+F27),\"-\")","v":0.11233015522085577},{"$f":"IF(G24>0,1-G25/(G24+G27),\"-\")","v":0.11769158676375169}]
["Thermal Energy Produced ***","MWh",408482,420273,424203,431228,{"$f":"SUM(C29:F29)","v":1684186},{"$f":"IF(G29>0,G29*1000/$G$21,\"-\")","v":2819.4197056341991}]
["Thermal Energy Exported ***",null,116488,109195.8484,94324.733070000002,88539.638579999999,408548.22005,{"$f":"IF(G30>0,G30*1000/$G$21,\"-\")","v":683.93212050851093}]
["R1 value (if applicable)","R1",null,null,null,null,0.96]
[]
["Waste Disposal & Recovery","Unit","Q1","Q2","Q3","Q4","Year Total","% inputs"]
["APC Residues - produced","tonnes",3769,3889,3792,3377,{"$f":"SUM(C34:F34)","v":14827},{"$f":"IF(G34>0,G34/$G$21,\"-\")","v":2.4821210944300849E-2}]
["IBA - produced",null,29558,31016,31296,29759,121629,{"$f":"IF(G35>0,G35/$G$21,\"-\")","v":0.20361361475311041}]
["Metals recycling",null,392.24,372.98,330.16,252.18,{"$f":"SUM(C36:F36)","v":1347.5600000000002},2.2558893248871689E-3]
["Wood",null,2.16,1.06,0.61,1.74,{"$f":"SUM(C37:F37)","v":5.57},9.3244853955456746E-6]
["Mixed Municipal",null,11.13,10.64,0.83,1.59,24.19,4.0495386304892261E-5]
["COSHH",null,"-","-",0.1,"-",0.1,1.6740548286437479E-7]
["WEEE",null,"-","-",0.1,"-",0.1,1.6740548286437479E-7]
[]
["Raw Material Usage","Unit","Q1","Q2","Q3","Q4","Year Total","kg or Ltr /te"]
["Mains Water","ltrs",1806000,2345000,2499000,1999000,{"$f":"SUM(C43:F43)","v":8649000},{"$f":"IF(G43>0,G43/$G$21,\"-\")","v":14.478900212939774}]
["Other Water","ltrs",null,null,null,null,0,{"$f":"IF(G44>0,G44/$G$21,\"-\")","v":"-"}]
["Ammonia","kgs",null,null,null,null,0,"-"]
["Urea","kgs",199234,189578,210165,228344,{"$f":"SUM(C46:F46)","v":827321},1.3849807148883739]
["Activated Carbon","kgs",54031,53930,55452,55968,219381,0.367255822362694]
["Lime / hydrated lime","kgs",1667000,1572,1606,1257,1671435,2.7980738325141625]
["Fuel oil","ltrs",256898,303388,186075,170419,916780,1.5347399858040152]
["Gas","cuf",null,null,null,null,0]
["Other",null,null,null,null,null,0]
[]
["Summary ","Line/Unit","Q1","Q2","Q3","Q4","Year Total",null,"Hrs in year "]
["Availability of waste combustion by line, hrs ****",1,1838,1915,2032.9333329999999,1987.7666670000001,{"$f":"SUM(C54:F54)","v":7773.7},{"$f":"+G54/$I$54","v":0.88740867579908678},8760]
[null,2,1972.6,1961.5333330000001,1981.883333,2022.25,7938.2666659999995,{"$f":"+G55/$I$54","v":0.90619482488584469}]
["Overall Availability, mean avg. of all lines, hrs","-",null,null,null,null,{"$f":"AVERAGE(G54:G55)","v":7855.9833330000001},0.89680175034246579]
["Hours of turbine operations, hrs",1,2152,2116,2098,2157,8523,0.97294520547945207]
["Hours of heat / steam export",null,null,null,null,null,8295,{"$f":"IF(B58>0,#REF!/I54,\"n/a\")","v":"n/a"}]
["Net Calorific Value of waste","MJ/kg",10.345000000000001,10.331,10.744999999999999,9.9260000000000002,10.33675]
["Abnormal Events","qty.",0,1,1,0,2,{"$f":"IF(G60>0,\"yes\",\"no\")","v":"yes"}]
["Abnormal operation","hours",0,0,0,0,0,{"$f":"+(G61)/I54","v":0}]

{"sheet":"Operational Summary","index":4,"n_rows":73,"n_cols":5,"rows_kept":73,"cut":false,"hidden":false,"merged":[[71,1,71,8],[72,1,72,8],[56,1,56,8],[57,1,57,8],[58,1,58,8],[68,1,68,8],[70,1,70,8],[54,1,54,8],[53,1,53,8],[69,1,69,8],[63,1,63,8],[64,1,64,8],[65,1,65,8],[66,1,66,8],[67,1,67,8],[60,1,60,8],[61,1,61,8],[62,1,62,8],[59,1,59,8],[55,1,55,8],[35,0,35,8],[36,0,36,8],[37,0,37,8],[38,0,38,8],[4,0,26,8],[30,0,30,8],[31,0,31,8],[32,0,32,8],[33,0,33,8],[34,0,34,8],[48,0,48,8],[49,0,49,8],[50,0,50,8],[51,0,51,8],[39,0,39,8],[40,0,40,8],[41,0,41,8],[42,0,42,8],[43,0,43,8],[44,0,44,8],[45,0,45,8],[46,0,46,8],[47,0,47,8]]}
[{"$f":"+'Cover Page'!$B$29","v":"Annual Performance Report 2024"},null,null,null,{"$f":"+'Cover Page'!$B$33","v":"Kemsley Generating Station"}]
[]
["Summary of Plant Operations and Maintenance during the reporting year"]
[]
["The plant performance (boiler and turbine availability) for 2024 was good and comparable with 2023 with a slightly increased boiler availability. The thermal energy produced and steam energy delivered to D.S. Smith remains in line with expectations and previous years. A very slight increasein the calorific value of the waste was observed and there was an increase in throughput in 2024 compared to 2023. The facility continues to maintain safe and environmentally compliant operations in accordance with the management system and legal requirements.\n\nDetailed PPM (planned preventative maintenance) processes, in line with equipment manufacturers recommendations, are in place and managed within the companies CMMS (Computerised Maintenance Management System).\n\nNo planned maintenance outages were completed in 2024 due to the outage being pushed back to 2025. 15 USDTs (Unscheduled Down Time) were conducted throught 2024 where unanticipated shutdowns were required in order to carry out necessary unplanned plant maintainance. In addition to the routine maintenance tasks and statutory inspections, boiler tubes continue to be exchanged and coated to aid in the reduction of further unplanned downtime due to tube leaks and improve plant availability.\n\nUpgraded combustion cameras were installed to allow improved monitoring of the combustion process to ensure maximum efficency. \nLegacy defects continue to be managed from the construction phase."]
[]
[]
[]
[]
[]
[]
[]
[]
[]
[]
[]
[]
[]
[]
[]
[]
[]
[]
[]
[]
[]
[]
[]
["Summary of Residue Handling for the reporting year"]
[]
["The residues produced from the incineration process include Incinerator Bottom Ash (IBA) and Air Pollution Control Residues (APCR). The facility has procedures in place as part of the management system for the handling of such residues."]
[]
["The IBA is sampled and sent to an approved testing laboratory twice a month and for a full hazard analysis once per quarter in accordance with the Environmental Permit. All hazard analysis results have demonstrated the IBA to be non-hazardous. IBA is sent for re-processing at Fortis IBA (Swale), a fully licenced site, where the metals are recovered and the IBA is used to produce construction materials."]
[]
["APCR is sampled and tested by the same approved laboratory once per quarter. Due to the inevitable hazardous nature of the APCR it is sent to Augean (Peterborough) where it is treated and landfilled. enfinium continue to investigate opportunities for recycling of this material."]
[]
["All testing of residues in carried out in accordance with the Industrial Emissions Directive (IED) and the Environmental Services Association (ESA) sampling and testing protocol."]
[]
[]
[]
[]
[]
[]
[]
[]
[]
[]
[]
[]
[]
[]
[]
[]
[{"$f":"+'Cover Page'!C39","v":2024},"Plant shut-downs"]
["Date","Reason for shut-down"]
["2nd-8th January","Unscheduled downtime (tube leak and tile replacement)"]
["22nd January","Unscheduled downtime"]
["11th-19th","Unscheduled downtime (tube leak)"]
["2nd-11th March","Unscheduled downtime (tube leak)"]
["13th-20th May","USDT, ID Fan bearing failure"]
["17th-21st June","USDT, Boiler Tube leak"]
["10th-12th April"," USDT, ID Fan bearing failure"]
["12th-15th May"," USDT, Grate damage"]
["10th-14th June"," USDT, grate repairs"]
["21st July","USDT (Unscheduled Downtime) , Loss of both Waste Cranes"]
["22nd – 30th","September – USDT, Boiler Tube leak\r"]
["3rd July","USDT, ID Fan Trip"]
["21st July ","USDT, Loss of both Waste Cranes"]
["6th – 7th","USDT, Primary Air Fan filter mesh failure"]
["25th - 30th September","USDT, Boiler Tube leak\r"]
["1st - 2nd October","USDT, Boiler Tube Leak"]
["1st – 8th October","USDT, Boiler Tube Leak"]
["15th – 21st December","USDT Boiler Tube Leak"]

{"sheet":"Perf. Form 1","index":5,"n_rows":54,"n_cols":10,"rows_kept":54,"cut":false,"hidden":false,"merged":[[9,0,9,9],[10,0,10,1],[10,2,10,3],[10,4,10,5],[10,6,10,7],[10,8,10,9],[2,0,2,4],[2,6,2,8],[3,1,3,4],[5,3,5,4],[5,6,5,7],[8,0,8,1],[8,2,8,3],[8,4,8,5],[8,6,8,7],[8,8,8,9],[11,0,11,1],[11,2,11,3],[11,4,11,5],[11,6,11,7],[11,8,11,9],[12,0,12,1],[12,2,12,3],[12,4,12,5],[12,6,12,7],[12,8,12,9],[15,0,15,1],[15,2,15,3],[15,4,15,5],[15,6,15,7],[15,8,15,9],[16,0,16,9],[13,0,13,1],[13,2,13,3],[13,4,13,5],[13,6,13,7],[13,8,13,9],[14,0,14,3],[14,4,14,5],[14,6,14,7],[14,8,14,9],[17,0,17,1],[17,2,17,3],[17,4,17,5],[17,6,17,7],[17,8,17,9],[18,0,18,1],[18,2,18,3],[18,4,18,5],[18,6,18,7],[18,8,18,9],[19,0,19,1],[19,2,19,3],[19,4,19,5],[19,6,19,7],[19,8,19,9],[20,0,20,1],[20,2,20,3],[20,4,20,5],[20,6,20,7],[20,8,20,9],[21,0,21,1],[21,2,21,3],[21,4,21,5],[21,6,21,7],[21,8,21,9],[22,0,22,3],[22,4,22,5],[22,6,22,7],[22,8,22,9],[31,0,31,3],[31,7,31,8],[32,0,32,3],[32,4,32,5],[32,7,32,8],[33,0,33,3],[33,4,33,5],[33,7,33,8],[23,0,23,3],[23,4,23,5],[23,6,23,7],[23,8,23,9],[25,0,25,9],[26,0,28,9],[36,0,36,3],[36,4,36,5],[36,7,36,8],[37,0,37,3],[37,4,37,5],[37,7,37,8],[34,0,34,3],[34,4,34,5],[34,7,34,8],[35,0,35,3],[35,4,35,5],[35,7,35,8],[47,0,47,1],[49,0,49,9],[50,0,51,9],[38,0,38,9],[39,0,40,9],[43,0,43,1],[43,2,43,9],[45,0,45,1],[46,0,46,1]]}
[{"$f":"+'Cover Page'!C39","v":2024}," Annual Reporting Performance Form 1"]
[]
[{"$f":"+'Cover Page'!B31","v":"Permit EPR/JP3135DK"},null,null,null,null,"Operator: ",{"$f":"+'Cover Page'!B37","v":"enfinium K3 CHP Operations Limited"}]
["Facility:",{"$f":"+'Cover Page'!B33:I33","v":"Kemsley Generating Station"},null,null,null,"Form:","Performance 1"]
[]
["Reporting  Period from: ",null,null,"1st Jan 2024",null,"to:","31st Dec 2024"]
[]
[{"$f":"+A1","v":2024},"Annual Reporting of Waste Disposal and Recovery"]
["Waste Description",null,"Disposal Route(s)",null,"Disposal Tonnes",null,"Recovery Tonnes",null,"% / tonne of waste incinerated"]
["1) Hazardous Wastes"]
["APC Residues",null,"D09",null,14846.56,null,0,null,{"$f":"IF((E11+G11)>0,(E11+G11)/'Operational Data'!$G$21, \"-\")","v":2.4853955456749118E-2}]
["IBA",null,null,null,null,null,null,null,{"$f":"IF((E12+G12)>0,(E12+G12)/'Operational Data'!$G$21, \"-\")","v":"-"}]
[null,null,null,null,null,null,null,null,{"$f":"IF((E13+G13)>0,(E13+G13)/'Operational Data'!$G$21, \"-\")","v":"-"}]
[null,null,null,null,null,null,null,null,{"$f":"IF((E14+G14)>0,(E14+G14)/'Operational Data'!$G$21, \"-\")","v":"-"}]
["Total Hazardous Waste",null,null,null,{"$f":"SUM(E11:F14)","v":14846.56},null,{"$f":"SUM(G11:H14)","v":0},null,{"$f":"IF((E15+G15)>0,(E15+G15)/'Operational Data'!$G$21, \"-\")","v":2.4853955456749118E-2}]
[]
["2) Non-Hazardous Wastes"]
["IBA",null,"R11",null,0,null,123644.315,null,{"$f":"IF((E18+G18)>0,(E18+G18)/'Operational Data'!$G$21, \"-\")","v":0.20698736256009856}]
["Ferrous Metal",null,"R04",null,0,null,1284.56,null,{"$f":"IF((E19+G19)>0,(E19+G19)/'Operational Data'!$G$21, \"-\")","v":2.1504238706826126E-3}]
["Process Water",null,null,null,null,null,null,null,{"$f":"IF((E20+G20)>0,(E20+G20)/'Operational Data'!$G$21, \"-\")","v":"-"}]
[null,null,null,null,null,null,null,null,{"$f":"IF((E21+G21)>0,(E21+G21)/'Operational Data'!$G$21, \"-\")","v":"-"}]
[null,null,null,null,null,null,null,null,{"$f":"IF((E22+G22)>0,(E22+G22)/'Operational Data'!$G$21, \"-\")","v":"-"}]
["Total Non-Hazardous Waste",null,null,null,{"$f":"SUM(E18:F22)","v":0},null,{"$f":"SUM(G18:H22)","v":124928.875},null,{"$f":"IF((E23+G23)>0,(E23+G23)/'Operational Data'!$G$21, \"-\")","v":0.20913778643078118}]
["TOTAL WASTE",null,null,null,{"$f":"+E23+E15","v":14846.56},null,{"$f":"+G23+G15","v":124928.875},null,{"$f":"IF((E24+G24)>0,(E24+G24)/'Operational Data'!$G$21, \"-\")","v":0.2339917418875303}]
[]
["Operator’s comments :"]
[]
[]
[]
[]
[{"$f":"+A1","v":2024},"Annual Reporting of Water and Other Raw Material Usage"]
["Raw Material",null,null,null,"Usage",null,"Unit","Specific Usage",null,"Unit"]
["Mains Water",null,null,null,{"$f":"+'Operational Data'!G43/1000","v":8649},null,"m3",{"$f":"IF(E33>0,E33/'Operational Data'!$G$21,\"-\")","v":1.4478900212939775E-2},null,"m3/te"]
["Total Water",null,null,null,{"$f":"+'Operational Data'!G44+'Operational Data'!G43/1000","v":8649},null,"m3",{"$f":"IF(E34>0,E34/'Operational Data'!$G$21,\"-\")","v":1.4478900212939775E-2},null,"m3/te"]
["Urea / Ammonia",null,null,null,{"$f":"+'Operational Data'!G45+'Operational Data'!G46","v":827321},null,"kg",{"$f":"IF(E35>0,E35/'Operational Data'!$G$21,\"-\")","v":1.3849807148883739},null,"kg/te"]
["Activated Carbon",null,null,null,{"$f":"+'Operational Data'!G47","v":219381},null,"kg",{"$f":"IF(E36>0,E36/'Operational Data'!$G$21,\"-\")","v":0.367255822362694},null,"kg/te"]
["Lime / hydrated lime / Sodium Bicarb.",null,null,null,{"$f":"+'Operational Data'!G48","v":1671435},null,"kg",{"$f":"IF(E37>0,E37/'Operational Data'!$G$21,\"-\")","v":2.7980738325141625},null,"kg/te"]
[]
["Operator’s comments :"]
["\"Urea / Ammonia\" \"Usage\" cell formula was not adding Ammonia and Urea Raw Material usage year totals from \"Operational data\" Tab. Formula ammended. "]
[]
[]
[{"$f":"+A31","v":2024},"Annual Reporting of other performance indicators "]
["Parameter",null,"Results by Line"]
[null,null,"A1","A2","A3","A4","A5",null,"Turbine 1","Turbine 2"]
["Operating hours for the year, hours",null,7774,7938,"N/A","N/A","N/A",null,8523,"N/A"]
["Number of periods of abnormal operation, qty.",null,0,0,"N/A","N/A","N/A",null,0,"N/A"]
["Cumulative hours of abnormal operation for this year, hours",null,0,0,"N/A","N/A","N/A",null,0,"N/A"]
[]
["Operator’s comments :"]
[]
[]
[]
["Signed: ","Luke Clothier",null,null,null,null,"Date:","28/01/2025"]

{"sheet":"Energy Form 1","index":6,"n_rows":29,"n_cols":8,"rows_kept":29,"cut":false,"hidden":false,"merged":[[2,6,2,8],[4,1,4,4],[6,3,6,4],[6,6,6,7],[8,0,8,2],[8,3,8,4],[8,6,8,8],[9,0,9,2],[9,3,9,4],[9,6,9,8],[10,0,10,2],[10,3,10,4],[10,6,10,8],[11,0,11,2],[11,3,11,4],[11,6,11,8],[12,0,12,2],[12,3,12,4],[12,6,12,8],[13,0,13,2],[13,3,13,4],[13,6,13,8],[14,0,14,2],[14,3,14,4],[14,6,14,8],[15,0,15,2],[15,3,15,4],[15,6,15,8],[17,0,17,8],[18,0,24,8]]}
[{"$f":"+'Cover Page'!C39","v":2024}," Annual Reporting of Energy Usage/Export"]
[]
[{"$f":"+'Cover Page'!B31","v":"Permit EPR/JP3135DK"},null,null,null,null,"Operator: ",{"$f":"+'Cover Page'!B37","v":"enfinium K3 CHP Operations Limited"}]
[]
["Facility:",{"$f":"+'Cover Page'!B33:I33","v":"Kemsley Generating Station"},null,null,null,"Form:","Energy 1"]
[]
["Reporting  Period from: ",null,null,{"$f":"+'Perf. Form 1'!D6:E6","v":"1st Jan 2024"},null,"to:",{"$f":"+'Perf. Form 1'!G6:H6","v":"31st Dec 2024"}]
[]
["Energy Source",null,null,"Energy Usage",null,"Unit","Specific Usage (KWh/tonne incinerated"]
["Electricity Produced",null,null,{"$f":"+'Operational Data'!G24","v":415469},null,"MWh",{"$f":"+'Operational Data'!H24","v":695.5178856017892}]
["Electricity Imported   ",null,null,{"$f":"+'Operational Data'!G27","v":661},null,"MWh",{"$f":"+'Operational Data'!H27","v":1.1065502417335173}]
["Electricity Exported",null,null,{"$f":"+'Operational Data'!G25","v":367155},null,"MWh",{"$f":"+'Operational Data'!H25","v":614.63760061069524}]
["Gas Oil",null,null,720.42084,null,"tonnes","-"]
["Steam/hot water exported",null,null,{"$f":"+'Operational Data'!G30","v":408548.22005},null,"GWh",{"$f":"+'Operational Data'!H30","v":683.93212050851093}]
[]
[]
[]
["Operator’s comments :"]
["Gas (fuel) oil used is for plant only. Fuel oil density used 0.82kg/l."]
[]
[]
[]
[]
[]
[]
[]
[]
[]
["Signed: ","Luke Clothier",null,null,null,null,"Date:","28/01/2025"]

{"sheet":"Permit Compliance","index":7,"n_rows":31,"n_cols":9,"rows_kept":31,"cut":false,"hidden":false,"merged":[[35,4,35,8],[9,0,9,1],[9,2,9,4],[9,5,9,8],[10,0,10,1],[10,2,10,4],[10,5,10,8],[11,0,11,1],[11,2,11,4],[11,5,11,8],[12,0,12,1],[12,2,12,4],[12,5,12,8],[13,0,13,1],[13,2,13,4],[13,5,13,8],[7,0,7,1],[7,2,7,8],[8,0,8,1],[8,2,8,4],[8,5,8,8],[34,1,34,3],[34,4,34,6],[34,7,34,9],[31,1,31,3],[31,4,31,6],[31,7,31,9],[32,1,32,3],[32,4,32,6],[32,7,32,9],[14,0,14,1],[14,2,14,4],[14,5,14,8],[15,0,15,1],[16,2,16,4],[16,5,16,8],[15,2,15,4],[15,5,15,8],[16,0,16,1],[18,0,18,10],[33,1,33,3],[33,4,33,6],[33,7,33,9],[29,1,29,3],[29,4,29,6],[29,7,29,9],[22,1,22,2],[23,1,23,2],[30,0,30,9],[24,1,24,2],[25,1,25,2],[26,0,26,8],[19,7,19,8],[19,1,19,2],[19,3,19,5],[22,3,22,5],[23,3,23,5],[24,3,24,5],[25,3,25,5],[21,0,21,8],[28,0,28,10]]}
[{"$f":"+'Cover Page'!$B$29","v":"Annual Performance Report 2024"},null,null,null,{"$f":"+'Cover Page'!$B$33","v":"Kemsley Generating Station"}]
[]
["Summary of Permit Compliance"]
[]
["Compliance with permit limits for continuously monitored pollutants"]
[]
["The plant met its emission limits as shown in the table below:"]
["Substance",null,"Percentage time compliant during operationNote 1"]
[null,null,"Half-hourly limit",null,null,"Daily limit"]
["Particulates",null,1,null,null,1]
["Oxides of nitrogen",null,1,null,null,1]
["Sulphur dioxide",null,1,null,null,1]
["Carbon monoxide",null,"\n100.00% 95% of 10-min averages",null,null,1]
["Total organic carbon",null,1,null,null,1]
["Hydrogen chloride",null,1,null,null,1]
["Hydrogen fluoride",null,1,null,null,1]
[null,null,1,null,null,1]
[]
["Summary of non-compliances under the permit Note 2"]
["Date","Summary of non-compliance Note 3",null,"Reason ",null,null,"Measures taken to prevent reoccurrence","CCS score if applicable*"]
[null,null,null,null,null,null,null,"Impact","Root cause"]
["No non-compliances in 2024"]
[]
[]
[]
[]
["*If the Environment Agency (EA) has given a Compliance Classification Scheme (CCS) score due to a permit non-compliance it should be entered here (CCS4 = No impact; CCS3 = Minor impact; CCS2 = Significant impact; CCS1 = Major impact). If the EA has not yet assessed a non-compliance which you have notified to them, these columns should be left blank. "]
[]
["Summary of any complaints received and actions to taken to resolve them."]
["Date","Summary of complaint [including Line/Reference]",null,null,"Reason (including whether substantiated by the operator or the EA)",null,null,"Measures taken to prevent reoccurrence"]
["No complaints received in 2024"]

{"sheet":"Improvements","index":8,"n_rows":39,"n_cols":5,"rows_kept":39,"cut":false,"hidden":false,"merged":[[37,0,37,8],[38,0,47,8],[4,0,4,8],[5,0,13,8],[15,0,15,8],[16,0,24,8],[26,0,26,8],[27,0,35,8]]}
[{"$f":"+'Cover Page'!$B$29","v":"Annual Performance Report 2024"},null,null,null,{"$f":"+'Cover Page'!$B$33","v":"Kemsley Generating Station"}]
[]
["Summary of Plant Improvements"]
[]
["Summary of any efficiency improvements that have been completed within the year."]
["During the planned outages a programme of Inconel coating application to boiler tubes has been carried out. This coating increases the resistance to corrosion and reducing downtime caused by tubes leaks. This in turn increases the availability of the plant with less downtime and re-heating of the plant meaning more efficient operations. \n\nWork is ongoing on optimisation of combustion within the plant. This ensures the conditionas and perameters are set correctly for optimal burning conditions enabling the efficient and compliant processing of waste with optimum energy recovery.  \n\nWork has completed regarding widining the roadways to reduce waiting times of vehicles, this will result in a quicker turnaround times and reduce the exhaust fumes from idling vehicles.\n"]
[]
[]
[]
[]
[]
[]
[]
[]
[]
["Summary of any permit improvement conditions that have been completed within the year and the resulting environmental benefits."]
["Summary the IC status:\n- IC1 - Environmental Management System - Submitted 15/07/2021, Discharged 22/07/2021.  \n- IC2 - Commissioning Report - Submitted 04/01/2021, Discharged 02/11/2021.\n- IC3 - Performance and Optimisation of the SNCR System - Submitted 21/12/2021, EA requested further            information and it has been agreed this will be submitted as part of IC8 within the new permit.\n- IC4 - Air dispersion Modelling - Submitted 08/10/2021, Discharged 23/08/2023.\n- IC5 - T2S (Residence Time) Testing Report - Submitted 04/12/2020, Discharged 06/08/2021.\n- IC6 - Review of Energy Efficiency Measures - Submitted 25/08/2021, Discharged 23/08/2023.\n- IC7 - Incineration of Sludges - Submitted 25/08/2021, Discharged 31/10/2022.\n- IC8 - NOx Reduction Trial - Submitted 31/10/2023, Awaiting EA response.\n- IC9 - Demonstration of Low and Stable Mercury content (BAT 4) - Submitted 04/09/2023, Awaiting EA response.\n- IC10 - Demonstration of Low and Stable Dioxin content (BAT 4) - Submitted 04/09/2023, Awaiting EA response.\nThese submissions provide evidence that the plant has been installed and operated as per design/ permit requirements.\n"]
[]
[]
[]
[]
[]
[]
[]
[]
[]
["Summary of any changes to the plant or operating techniques which required a variation to the permit and a summary of the resulting environmental impact."]
["No changes to plant or operating techniques requiring a variation application in 2024."]
[]
[]
[]
[]
[]
[]
[]
[]
[]
["Summary of any other improvements made to the plant or planned to be made and a summary of the resulting environmental benefits."]
["A second standby Continuous Emissions Measurement System (CEMS) continues to operate, meaning the facility has four CEMS, a duty and a standby on each line enabling 100% redundancy. This will provide full coverage ensuring no data is lost during malfunction of duty CEMS on either combustion lines. \n\nA trial of higher specification stack flow meters (Stackflow400) has been conducted, showing good correlation with current flow meters. The Stackflow400 meters are to be installed across all lines providing continuously monitored flow data with a higher accuracy and ability for calibration.\n\nAmesa-B units have been installed to improve the reporting of biogenic carbon fractions and continue to operate.\n\nAll required testing and trials in accordance with the BREF and new permit was completed as required by the Environmental Permit. The facility continues successfully operating within the lower Emission Limit Value's (ELV's)."]

{"sheet":"Public Liasion","index":9,"n_rows":29,"n_cols":5,"rows_kept":29,"cut":false,"hidden":false,"merged":[[16,0,16,1],[16,2,16,8],[5,0,5,1],[5,2,5,8],[6,0,7,1],[6,2,7,8],[8,0,9,1],[8,2,9,8],[10,0,11,1],[10,2,11,8],[12,0,13,1],[12,2,13,8],[15,0,15,8],[17,0,18,1],[17,2,18,8],[19,0,20,1],[19,2,20,8],[21,0,22,1],[21,2,22,8],[23,0,24,1],[23,2,24,8],[25,0,26,1],[25,2,26,8],[28,0,28,8]]}
[{"$f":"+'Cover Page'!$B$29","v":"Annual Performance Report 2024"},null,null,null,{"$f":"+'Cover Page'!$B$33","v":"Kemsley Generating Station"}]
[]
["Details of Public & Stakeholder Liaison"]
[]
["Summary of events held during the reporting year."]
["Date",null,"Description"]
["Monthly",null,"Project meeting with local businesses - KFBP Forum (including DS Smith, E.On, FGS, MVV, McLaren Dalcour, Swale Local Council, Kent Council, Sea Terminals Ridham, national highways)."]
[]
["Quarterly ",null,"Environmental meeting with DS Smith and E.On."]
[]
[]
[]
[]
[]
[]
["List of events planned for next year"]
["Date",null,"Description"]
["Monthly",null,"Project meeting with local businesses - KFBP Forum (including DS Smith, E.On, FGS, MVV, McLaren Dalcour, Swale Local Council, Kent Council, Sea Terminals Ridham, national highways)."]
[]
["Quarterly ",null,"Environmental meeting with DS Smith and E.On."]
[]
[]
[]
[]
[]
[]
[]
[]
["If you wish to be involved in the public liaison programme, please contact enfinium Kemsley (01795 685 740)"]

{"sheet":"CO2 N2O","index":10,"n_rows":26,"n_cols":4,"rows_kept":26,"cut":false,"hidden":false,"merged":[[22,2,22,3],[25,1,25,3],[16,2,16,3],[4,0,4,3],[9,0,9,3],[17,0,17,3],[13,0,13,3],[12,0,12,1],[8,2,8,3],[11,2,11,3],[19,2,19,3]]}
[{"$f":"+'Cover Page'!$B$29","v":"Annual Performance Report 2024"},null,{"$f":"+'Cover Page'!$B$33","v":"Kemsley Generating Station"}]
[]
["Carbon dioxide emissions and biogenic content of waste inputs"]
[]
["Carbon dioxide emissions (all types of plant)"]
[null,"Annual mass of carbon dioxide released","tonnes ",610740]
[null,"Annual mass of carbon dioxide released per tonne of waste burned","t CO2 / t waste ",1.02]
[null,"Annual mass of carbon dioxide released per MWh of energy exported","t CO2 / MWh export ",0.81]
[null,"Description of how annual carbon dioxide mass emission has been calculated. \nSee Note 1","Measured - CEMS Data"]
["Nitrous oxide emissions (only plants which use ammonia or urea to abate NOx emissions)"]
[null,"Annual mass emissions of nitrous oxide","tonnes N2O",12.553000000000001]
[null,"Description of how annual nitrous oxide mass emission has been calculated\nSee Note 2","Measured - CEMS Data"]
["Total annual carbon dioxide + nitrous oxide emissions. \nSee Note 3. ",null,"tonnes CO2e",614480]
["Biogenic CO2 emissions (See Note 4)"]
[null,"Percentage of total carbon dioxide emissions arising from biogenic waste","%",0.53300000000000003]
[null,"No. of measurements undertaken","Number",11]
[null,"Description of how percentage biogenic carbon dioxide emissions have been measured or calculated.\nSee Note 5","Amesa B monitoring"]
["Biogenic fraction of waste feedstock (See Note 4)"]
[null,"Yearly average biogenic percentage of the waste by net calorific value (NCV)","%",0.49]
[null,"Description of how biogenic percentage (by NCV) has been calculated or estimated. \nSee Note 6","Amesa B monitoring"]
[null,"Yearly average biogenic percentage of the waste by mass","%",0.53700000000000003]
[null,"If waste sampling undertaken, no. of samples used to ascertain average biogenic percentages above","Number","N/A"]
[null,"Description of how biogenic percentage (by mass) has been calculated or estimated. \nSee Note 7","The biogenic content has been determined by an Amesa-b long term CO2 sampler which collects monthly composite samples. These are then analysed by an ISO/IEC 17025:2017 accredited testing laboratory. The analytical method adhered to by the lab is the %biogenic CO2 determination ISO-13833:2013 Annex A (AMS) using radiocarbon isotope C14."]
[]
[null,"Comments:"]
[null,"Awaiting C14 result for December 2024 due to laboratoy delays"]

{"sheet":"Residue Quality ","index":11,"n_rows":37,"n_cols":6,"rows_kept":37,"cut":false,"hidden":false,"merged":[[5,0,10,6],[20,0,21,1],[20,2,21,6],[22,0,23,1],[22,2,23,6],[16,0,17,1],[16,2,17,6],[18,0,19,1],[18,2,19,6],[12,0,12,6],[13,0,13,1],[13,2,13,6],[14,0,15,1],[14,2,15,6],[31,3,31,4],[27,2,28,2],[28,3,28,4],[28,5,28,6],[27,3,27,6],[26,0,26,6],[36,0,41,6],[32,3,32,4],[35,0,35,6],[27,0,28,1],[29,0,29,1],[30,0,30,1],[31,0,31,1],[32,0,32,1],[29,3,29,4],[30,3,30,4],[29,5,29,6],[30,5,30,6],[31,5,31,6],[32,5,32,6],[33,0,33,6]]}
[{"$f":"+'Cover Page'!$B$29","v":"Annual Performance Report 2024"},null,null,null,{"$f":"+'Cover Page'!$B$33","v":"Kemsley Generating Station"}]
[]
["Residue Quality Monitoring Requirements"]
[]
["Summary of monitoring undertaken and compliance"]
["The residues produced from the process include Incinerator Bottom Ash (IBA) and Air Pollution Control Residues (APCR). \n\nThe IBA is sampled and sent to an approved testing laboratory twice a month for analysis and both the IBA and APCR are sent for a full hazard analysis once per quarter. All hazard analysis results have demonstrated the IBA to be non-hazardous, APCR is hazardous by nature and disposed of accordingly. \n\nAll testing of residues in carried out in accordance with the Industrial Emissions Directive and the ESA sampling and testing protocol. "]
[]
[]
[]
[]
[]
[]
["Commentary on any specific events"]
["Date & Event",null,"Description"]
["01/01/2024 - 31/12/2024",null,"No specific events, all IBA for 2024 was classed as non-hazardous."]
[]
[]
[]
[]
[]
[]
[]
[]
[]
[]
[]
["Residue Quality Monitoring Results"]
["Parameter (unit) ",null,"Limit*","Normal Operation "]
[null,null,null,"Bottom ash  ",null,"APC Residues"]
["Loss on Ignition (average %)",null,"%","2024 average = 1.4%"]
["Total Organic Carbon (average %)",null,"<3%","2024 average = 0.6%"]
["No. of Assessments Undertaken",null,"---",24,null,4]
["No. of Hazardous Results",null,"---",0]
["* The permit will specify a limit of either 5% loss on ignition or 3% total organic carbon. If both are measured anyway, please enter the results here, even where the limit does not apply. "]
[]
["Comments :"]
["LOI and TOC for the IBA are an average of the 24 samples taken in 2024, no samples exceeded the set limits within the Environmental Permit.\n\nAll samples were sent for analysis at a fully accredited laboratory."]

{"sheet":"Water","index":12,"n_rows":24,"n_cols":9,"rows_kept":24,"cut":false,"hidden":false,"merged":[[14,0,15,8],[5,0,6,8],[7,0,8,8],[9,0,10,8],[12,0,12,8],[13,0,13,1],[13,2,13,8],[21,0,21,8],[22,0,22,2],[22,3,22,4],[16,0,17,1],[16,2,17,8],[18,0,19,1],[18,2,19,8],[24,0,24,2],[24,3,24,4],[25,0,25,2],[25,3,25,4],[23,0,23,8],[29,0,29,2],[29,3,29,4],[26,0,26,2],[26,3,26,4],[27,0,27,2],[27,3,27,4],[28,0,28,2],[28,3,28,4]]}
[{"$f":"+'Cover Page'!$B$29","v":"Annual Performance Report 2024"},null,null,null,{"$f":"+'Cover Page'!$B$33","v":"Kemsley Generating Station"}]
[]
["Emissions to Water"]
[]
["Summary of monitoring undertaken and compliance"]
["Water balance is achived by a attenuation pond for rainwater with a closed penstock which can emit to the Swale. Regular visual inspections to check for hydrocarbons and particulate are conducted. The penstock requires manual operation and would only be operated following heavy rainfall to prevent flooding, in which case additional inspections and pH testing would be conducted. \n"]
[]
[]
[]
[]
[]
[]
["Commentary on any specific events"]
["Date & Event",null,"Description"]
["No events in 2024"]
[]
[]
[]
[]
[]
[]
["Emissions to Water / Sewer"]
["Parameter",null,null,"Monitoring Frequency",null,"Limit","Target","Max.","Average"]
["None set in any permits or consents "]

{"sheet":"Air (periodic)","index":13,"n_rows":40,"n_cols":11,"rows_kept":40,"cut":false,"hidden":false,"merged":[[5,0,6,10],[38,0,38,10],[39,0,40,10],[11,0,11,1],[9,5,9,10],[8,0,8,10],[12,0,12,1],[11,3,11,4],[12,3,12,4],[9,0,10,1],[9,3,10,4],[9,2,10,2],[16,0,16,1],[17,0,17,1],[18,0,18,1],[13,0,13,1],[14,0,14,1],[15,0,15,1],[25,0,25,1],[26,0,26,1],[22,0,22,1],[23,0,23,1],[37,0,37,1],[27,0,27,1],[28,0,28,1],[29,0,29,1],[30,0,30,1],[31,0,31,1],[32,0,32,1],[37,3,37,4],[29,3,29,4],[30,3,30,4],[36,3,36,4],[19,0,19,1],[20,0,20,1],[21,0,21,1],[34,3,34,4],[35,3,35,4],[33,0,33,1],[34,0,34,1],[35,0,35,1],[36,0,36,1],[24,0,24,1],[32,3,32,4],[27,3,27,4],[33,3,33,4],[19,3,19,4],[20,3,20,4],[21,3,21,4],[22,3,22,4],[23,3,23,4],[24,3,24,4],[31,3,31,4],[25,3,25,4],[26,3,26,4],[28,3,28,4],[18,3,18,4],[13,3,13,4],[14,3,14,4],[15,3,15,4],[16,3,16,4],[17,3,17,4]]}
[{"$f":"+'Cover Page'!$B$29","v":"Annual Performance Report 2024"},null,null,null,{"$f":"+'Cover Page'!$B$33","v":"Kemsley Generating Station"}]
[]
["Emissions to Air (periodically monitored)"]
[]
["Summary of monitoring undertaken, standards used and compliance"]
["Results are below set limits where applicable and comparable with the results from 2024, with the exception of 1 untypical mercury result (see comments). Sampling and analysis was carried out by MCERTS certified contractors in accordance with the appropriate standards."]
[]
[]
["Results of emissions to air that are periodically monitored - oxygen reference 11% "]
["Substance",null,"Ref. Period","Emission Limit Value",null,"Average"]
[null,null,null,null,null,"A1 Q2","A2 Q2","A1 Annual Average","A1 Q4","A2 Q4","A2 Annual Average"]
["Hydrogen fluoride",null,"1 hr","1 mg/m3",null,2.5000000000000001E-2,0.03,{"$f":"AVERAGE(F12,I12)","v":2.6500000000000003E-2},2.8000000000000001E-2,2.9000000000000001E-2,{"$f":"AVERAGE(G12,J12)","v":2.9499999999999998E-2}]
["Cd and Tl and their compounds",null,"0.5-8hrs","0.02 mg/m3",null,1.2999999999999999E-3,6.7000000000000002E-4,{"$f":"AVERAGE(F13,I13)","v":1.0950000000000001E-3},8.8999999999999995E-4,8.0999999999999996E-4,{"$f":"AVERAGE(G13,J13)","v":7.3999999999999999E-4}]
["Hg and its compounds",null,"0.5-8hrs","0.02 mg/m3",null,1.0999999999999999E-2,6.1000000000000004E-3,8.3000000000000001E-3,5.5999999999999999E-3,3.2000000000000002E-3,4.6500000000000005E-3]
["Sb, As, Pb, Cr, Co, Cu, Mn, Ni, V and their compounds",null,"0.5-8hrs","0.3 mg/m3",null,2.4E-2,1.0999999999999999E-2,1.515E-2,6.3E-3,1.2999999999999999E-2,1.2E-2]
["Dioxins & Furans (I-TEQ)",null,"6-8hrs","0.06 ng/m3",null,4.1000000000000002E-2,2.8000000000000001E-2,2.75E-2,1.4E-2,1.4E-2,2.1000000000000001E-2]
["PCBs (WHO-TEQ Humans / Mammals)",null,"6-8hrs","None set ng/m3",null,5.0000000000000001E-3,1.5E-3,3.0000000000000001E-3,1E-3,1.4E-3,1.4499999999999999E-3]
["PCBs (WHO-TEQ Fish)",null,"6-8hrs","None set ng/m3",null,2.3000000000000001E-4,7.2000000000000002E-5,1.3799999999999999E-4,4.6E-5,6.7000000000000002E-5,6.9500000000000009E-5]
["PCBs (WHO-TEQ Birds)",null,"6-8hrs","None set ng/m3",null,0.01,3.2000000000000002E-3,5.9500000000000004E-3,1.9E-3,3.3E-3,3.2500000000000003E-3]
["Dioxins & Furans (WHO-TEQ Humans / Mammals)",null,"6-8hrs","None set ng/m3",null,3.9E-2,2.5999999999999999E-2,2.5999999999999999E-2,1.2999999999999999E-2,1.2999999999999999E-2,1.95E-2]
["Dioxins & Furans (WHO-TEQ Fish)",null,"6-8hrs","None set ng/m3",null,4.1000000000000002E-2,0.03,2.8000000000000001E-2,1.4999999999999999E-2,1.4999999999999999E-2,2.2499999999999999E-2]
["Dioxins & Furans (WHO-TEQ Birds)",null,"6-8hrs","None set ng/m3",null,6.0999999999999999E-2,6.6000000000000003E-2,4.4499999999999998E-2,2.8000000000000001E-2,2.4E-2,4.4999999999999998E-2]
["Anthanthrene",null,"6-8hrs","None set µg/m3",null,"N/A",1.4E-3,1.2999999999999999E-3,1.2999999999999999E-3,1.2999999999999999E-3,1.3500000000000001E-3]
["Benzo(a)anthracene",null,"6-8hrs","None set µg/m3",null,"N/A",6.0000000000000001E-3,1.2999999999999999E-3,1.2999999999999999E-3,1.2999999999999999E-3,3.65E-3]
["Benzo(a)pyrene",null,"6-8hrs","None set µg/m3",null,"N/A",1.4E-3,1.2999999999999999E-3,1.2999999999999999E-3,1.2999999999999999E-3,1.3500000000000001E-3]
["Benzo(b)fluoranthene",null,"6-8hrs","None set µg/m3",null,"N/A",1.6999999999999999E-3,1.2999999999999999E-3,1.2999999999999999E-3,1.2999999999999999E-3,1.5E-3]
["Benzo(b)naptho(2,1-d) thiophene",null,"6-8hrs","None set µg/m3",null,"N/A",1.4E-3,1.2999999999999999E-3,1.2999999999999999E-3,1.2999999999999999E-3,1.3500000000000001E-3]
["Benzo(c)phenanthrene",null,"6-8hrs","None set µg/m3",null,"N/A",3.0999999999999999E-3,1.2999999999999999E-3,1.2999999999999999E-3,1.2999999999999999E-3,2.1999999999999997E-3]
["Benzo(ghi)perylene",null,"6-8hrs","None set µg/m3",null,"N/A",1.4E-3,1.2999999999999999E-3,1.2999999999999999E-3,1.2999999999999999E-3,1.3500000000000001E-3]
["Benzo(k)fluoranthene",null,"6-8hrs","None set µg/m3",null,"N/A",1.4E-3,1.2999999999999999E-3,1.2999999999999999E-3,1.2999999999999999E-3,1.3500000000000001E-3]
["Cholanthrene",null,"6-8hrs","None set µg/m3",null,"N/A",1.4E-3,1.2999999999999999E-3,1.2999999999999999E-3,1.2999999999999999E-3,1.3500000000000001E-3]
["Chrysene",null,"6-8hrs","None set µg/m3",null,"N/A",6.1000000000000004E-3,1.2999999999999999E-3,1.2999999999999999E-3,1.6000000000000001E-3,3.8500000000000001E-3]
["Cyclopenta(cd)pyrene",null,"6-8hrs","None set µg/m3",null,"N/A",3.8999999999999998E-3,1.2999999999999999E-3,1.2999999999999999E-3,1.2999999999999999E-3,2.5999999999999999E-3]
["Dibenzo(ai)pyrene",null,"6-8hrs","None set µg/m3",null,"N/A",1.4E-3,1.2999999999999999E-3,1.2999999999999999E-3,1.2999999999999999E-3,1.3500000000000001E-3]
["Dibenzo(ah)anthracene",null,"6-8hrs","None set µg/m3",null,"N/A",1.4E-3,1.2999999999999999E-3,1.2999999999999999E-3,1.2999999999999999E-3,1.3500000000000001E-3]
["Fluoranthene",null,"6-8hrs","None set µg/m3",null,"N/A",0.23,1.2999999999999999E-2,1.2999999999999999E-2,1.7000000000000001E-2,0.1235]
["Indeno(123-cd) pyrene",null,"6-8hrs","None set µg/m3",null,"N/A",1.4E-3,1.2999999999999999E-3,1.2999999999999999E-3,1.2999999999999999E-3,1.3500000000000001E-3]
["Naphthalene",null,"6-8hrs","None set µg/m3",null,"N/A",0.12,0.35,0.35,0.38,0.25]
["Comments :"]
["Specific individual poly-cyclic aromatic hydrocarbons (PAHs) monitoring is completed annually as per Table S3.1 in Environmental Permit EPR/JP3135DK/V006\n\nLine 1 Q2 periodic monitoring Mercury results triggered the mercury monitoring BREF protocol, 2x re-tests were conducted over 1 month, demonstrating consistent performance <10ug/Nm3. Re-test results submitted to the environment agency."]

{"sheet":"Air (CEMS)","index":14,"n_rows":29,"n_cols":13,"rows_kept":29,"cut":false,"hidden":false,"merged":[[14,13,15,13],[14,14,15,14],[12,13,13,14],[26,0,26,12],[5,0,8,12],[28,0,29,12],[13,0,14,0],[10,0,10,12],[11,0,12,0],[11,2,12,2],[11,1,12,1],[11,3,11,4],[11,5,11,6],[11,7,11,8],[11,9,11,10],[11,11,11,12]]}
[{"$f":"+'Cover Page'!$B$29","v":"Annual Performance Report 2024"},null,null,null,null,null,null,null,{"$f":"+'Cover Page'!$B$33","v":"Kemsley Generating Station"}]
[]
["Emissions to Air (continuously monitored)"]
[]
["Summary of monitoring undertaken, standards used and compliance"]
["For 2024, the facility achieve 100% compliance with the limits set in the Environmental Permit for all continiuously monitored determinands.\n\nHCl, SO2, NOx, TOC and CO all have limits set out in the Environmental Permit; these determinands are continuously monitored by CEMS's in compliance with EN 14181. NH3, O2, CO2 and Water Vapour and are also continuously monitored by the CEMS's.\n\nAll instruments are QAL1 compliant and undergo annual checks either in the form of a QAL2 or an Annual Surveillance Test compliant with the requirements of EN 14181.\n"]
[]
[]
[]
[]
["Results of emissions to air that are continuously monitored (maximum and average values for each line) - oxygen reference 11%"]
["Substance","Reference Period","Emission Limit Value","A1",null,"A2",null,"A3",null,"A4",null,"A5"]
[null,null,null,"Max.","Avg.","Max.","Avg.","Max.","Avg.","Max.","Avg.","Max.","Avg."]
["Oxides of nitrogen","Daily mean","180 mg/m3 ",166.88666666666668,173.65,171.45,166.75333333333333,"-","-","-","-","-","-"]
[null,"½ hourly mean","400 mg/m3 ",237.5,166.89166666666665,195.9,166.77500000000001,"-","-","-","-","-","-"]
["Particulates","Daily mean","5 mg/m3",0.6,9.9999999999999992E-2,1.0900000000000001,0.12583333333333338,"-","-","-","-","-","-"]
[null,"½ hourly mean","30 mg/m3 ",5.4,0.10833333333333334,4.2,0.13333333333333339,"-","-","-","-","-","-"]
["Total Organic Carbon ","Daily mean","10 mg/m3 ",1.18,0.21833333333333335,1.1499999999999999,0.16666666666666666,"-","-","-","-","-","-"]
[null,"½ hourly mean","20 mg/m3 ",7.4,0.21666666666666665,0.17500000000000002,6,"-","-","-","-","-","-"]
["Hydrogen chloride ","Daily mean","8 mg/m3 ",7.19,5.3191666666666668,7.3,5.7291666666666679,"-","-","-","-","-","-"]
[null,"½ hourly mean","60 mg/m3 ",32.1,5.4222222222222225,13.3,5.5916666666666659,"-","-","-","-","-","-"]
["Sulphur dioxide","Daily mean","40 mg/m3 ",23.73,2.5258333333333334,22.26,2.2883333333333327,"-","-","-","-","-","-"]
[null,"½ hourly mean","200 mg/m3 ",153,2.5166666666666671,105.5,2.3083333333333336,"-","-","-","-","-","-"]
["Carbon monoxide ","Daily mean","50 mg/m3 ",9.64,3.6208333333333336,13.34,3.0083333333333333,"-","-","-","-","-","-"]
[null,"95%ile 10-min avg *","150 mg/m3 *",6.2333333333333334,3.6750000000000003,6.6000000000000005,3.0166666666666671,"-","-","-","-","-","-"]
[" Ammonia","Daily mean","15 mg/m3 ",5.66,0.60416666666666663,1.8,9.7499999999999989E-2,"-","-","-","-","-","-"]
["* = delete as appropriate, depending on whether your plant has half-hourly or 10-min CO ELVs\n"]
["Comments :"]
["K3 facility operates 2 lines (2 boilers and 2 emission points) with 1 common turbine."]

{"sheet":"HCl","index":15,"n_rows":79,"n_cols":15,"rows_kept":79,"cut":false,"hidden":false,"merged":[[51,9,63,9],[66,9,78,9],[4,9,4,14],[4,1,4,3],[4,4,4,6],[48,0,51,6],[47,0,47,6],[6,9,18,9],[21,9,33,9],[36,9,48,9],[18,4,18,6]]}
[{"$f":"+'Cover Page'!$B$29","v":"Annual Performance Report 2024"},null,null,null,{"$f":"+'Cover Page'!$B$33","v":"Kemsley Generating Station"}]
[]
["Monitoring of Hydrogen Chloride emissions",null,null,"Whole Installation",null,null,"See  Notes in Cell Q3",null,null,{"$f":"+A3","v":"Monitoring of Hydrogen Chloride emissions"},null,null,null,"Per Combustion Line"]
[]
[{"$f":"+'Cover Page'!C39","v":2024},"1/2 Hourly Reference Periods",null,null,"Daily Reference Periods"]
["mg/Nm3","1/2 hourly HCl ELV","Monthly mean of half-hourly averages","Highest half- hourly average","Daily HCl ELV","Monthly mean of  daily averages","Highest daily average",null,null,{"$f":"+A5","v":2024},"mg/Nm3","Monthly mean of half-hourly averages","Highest half- hourly average","Monthly mean of  daily averages","Highest daily average"]
["Jan",60,{"$f":"AVERAGE(L7,L22)","v":4.4000000000000004},{"$f":"MAX(M7,M22)","v":11.3},8,{"$f":"AVERAGE(N7,N22)","v":4.37},{"$f":"MAX(O7,O22)","v":6.48},null,null,"A1","Jan",4.3,8.4,4.29,6.48]
["Feb",60,{"$f":"AVERAGE(L8,L23)","v":5.5},{"$f":"MAX(M8,M23)","v":17},8,{"$f":"AVERAGE(N8,N23)","v":5.4849999999999994},{"$f":"MAX(O8,O23)","v":6.77},null,null,null,"Feb",5,17,5.01,6.76]
["Mar",60,{"$f":"AVERAGE(L9,L24)","v":6},{"$f":"MAX(M9,M24)","v":10.8},8,6,7.07,null,null,null,"Mar",5.8,8.3000000000000007,5.79,6.71]
["Apr",60,{"$f":"AVERAGE(L10,L25)","v":6.5},9.6,8,6.49,6.78,null,null,null,"Apr",6.5,9.6,6.48,6.78]
["May",60,6.25,{"$f":"MAX(M11,M26)","v":10.1},8,6.23,7.3,null,null,null,"May",5.8,8.4,5.81,7.1]
["Jun",60,6.2,8.9,8,6.1549999999999994,7.08,null,null,null,"Jun",6,8.5,5.96,7.08]
["Jul",60,6,32.1,8,5.9850000000000003,7.19,null,null,null,"Jul",6.2,32.1,6.15,7.19]
["Aug",60,5.5500000000000007,10.199999999999999,8,5.5600000000000005,7.01,null,null,null,"Aug",5.2,8.6999999999999993,5.18,7.01]
["Sep",60,4.3,9.5,8,4.3250000000000002,6.86,null,null,null,"Sep",3.9,9.1,3.9,6.37]
["Oct",60,5,12.1,8,5.03,6.98,null,null,null,"Oct",5.0999999999999996,10.5,5.15,6.98]
["Nov",60,5.7,10.5,8,5.6950000000000003,6.89,null,null,null,"Nov",6.4,10.5,6.41,6.89]
["Dec",60,4.0999999999999996,{"$f":"MAX(M18,M33)","v":10.7},8,4.9649999999999999,5.85,null,null,null,"Dec",3.7,9,3.7,5.85]
[null,null,null,null,null,null,null,null,null,null,"Annual",{"$f":"AVERAGE(L10:L18)","v":5.4222222222222225},{"$f":"MAX(M10:M18)","v":32.1},{"$f":"AVERAGE(N7:N18)","v":5.3191666666666668},{"$f":"MAX(O7:O18)","v":7.19}]
[]
[null,null,null,null,null,null,null,null,null,{"$f":"+A5","v":2024},"mg/Nm3","Monthly mean of half-hourly averages","Highest half- hourly average","Monthly mean of  daily averages","Highest daily average"]
[null,null,null,null,null,null,null,null,null,"A2","Jan",4.5,11.3,4.45,6.11]
[null,null,null,null,null,null,null,null,null,null,"Feb",6,10.5,5.96,6.77]
[null,null,null,null,null,null,null,null,null,null,"Mar",6.2,10.8,6.21,7.07]
[null,null,null,null,null,null,null,null,null,null,"Apr",6.5,9.6,6.5,6.74]
[null,null,null,null,null,null,null,null,null,null,"May",6.7,10.1,6.65,7.3]
[null,null,null,null,null,null,null,null,null,null,"Jun",6.4,8.9,6.35,6.99]
[null,null,null,null,null,null,null,null,null,null,"Jul",5.8,13.3,5.82,7.08]
[null,null,null,null,null,null,null,null,null,null,"Aug",5.9,10.199999999999999,5.94,6.97]
[null,null,null,null,null,null,null,null,null,null,"Sep",4.7,9.5,4.75,6.86]
[null,null,null,null,null,null,null,null,null,null,"Oct",4.9000000000000004,12.1,4.91,6.91]
[null,null,null,null,null,null,null,null,null,null,"Nov",5,9.6999999999999993,4.9800000000000004,6.41]
[null,null,null,null,null,null,null,null,null,null,"Dec",4.5,10.7,6.23,4.51]
[null,null,null,null,null,null,null,null,null,null,"Annual",{"$f":"AVERAGE(L22:L33)","v":5.5916666666666659},{"$f":"MAX(M22:M33)","v":13.3},{"$f":"AVERAGE(N22:N33)","v":5.7291666666666679},{"$f":"MAX(O22:O33)","v":7.3}]
[]
[null,null,null,null,null,null,null,null,null,{"$f":"+A5","v":2024},"mg/Nm3","Monthly mean of half-hourly averages","Highest half- hourly average","Monthly mean of  daily averages","Highest daily average"]
[null,null,null,null,null,null,null,null,null,"A3","Jan"]
[null,null,null,null,null,null,null,null,null,null,"Feb"]
[null,null,null,null,null,null,null,null,null,null,"Mar"]
[null,null,null,null,null,null,null,null,null,null,"Apr"]
[null,null,null,null,null,null,null,null,null,null,"May"]
[null,null,null,null,null,null,null,null,null,null,"Jun"]
[null,null,null,null,null,null,null,null,null,null,"Jul"]
[null,null,null,null,null,null,null,null,null,null,"Aug"]
[null,null,null,null,null,null,null,null,null,null,"Sep"]
[null,null,null,null,null,null,null,null,null,null,"Oct"]
[null,null,null,null,null,null,null,null,null,null,"Nov"]
["Comments :",null,null,null,null,null,null,null,null,null,"Dec"]
[null,null,null,null,null,null,null,null,null,null,"Annual",{"$f":"AVERAGE(L37:L48)","v":{"$error":"#DIV/0!"}},{"$f":"MAX(M37:M48)","v":0},{"$f":"AVERAGE(N37:N48)","v":{"$error":"#DIV/0!"}},{"$f":"MAX(O37:O48)","v":0}]
[]
[null,null,null,null,null,null,null,null,null,{"$f":"+A5","v":2024},"mg/Nm3","Monthly mean of half-hourly averages","Highest half- hourly average","Monthly mean of  daily averages","Highest daily average"]
[null,null,null,null,null,null,null,null,null,"A4","Jan"]
[null,null,null,null,null,null,null,null,null,null,"Feb"]
[null,null,null,null,null,null,null,null,null,null,"Mar"]
[null,null,null,null,null,null,null,null,null,null,"Apr"]
[null,null,null,null,null,null,null,null,null,null,"May"]
[null,null,null,null,null,null,null,null,null,null,"Jun"]
[null,null,null,null,null,null,null,null,null,null,"Jul"]
[null,null,null,null,null,null,null,null,null,null,"Aug"]
[null,null,null,null,null,null,null,null,null,null,"Sep"]
[null,null,null,null,null,null,null,null,null,null,"Oct"]
[null,null,null,null,null,null,null,null,null,null,"Nov"]
[null,null,null,null,null,null,null,null,null,null,"Dec"]
[null,null,null,null,null,null,null,null,null,null,"Annual",{"$f":"AVERAGE(L52:L63)","v":{"$error":"#DIV/0!"}},{"$f":"MAX(M52:M63)","v":0},{"$f":"AVERAGE(N52:N63)","v":{"$error":"#DIV/0!"}},{"$f":"MAX(O52:O63)","v":0}]
[]
[null,null,null,null,null,null,null,null,null,{"$f":"+A5","v":2024},"mg/Nm3","Monthly mean of half-hourly averages","Highest half- hourly average","Monthly mean of  daily averages","Highest daily average"]
[null,null,null,null,null,null,null,null,null,"A5","Jan"]
[null,null,null,null,null,null,null,null,null,null,"Feb"]
[null,null,null,null,null,null,null,null,null,null,"Mar"]
[null,null,null,null,null,null,null,null,null,null,"Apr"]
[null,null,null,null,null,null,null,null,null,null,"May"]
[null,null,null,null,null,null,null,null,null,null,"Jun"]
[null,null,null,null,null,null,null,null,null,null,"Jul"]
[null,null,null,null,null,null,null,null,null,null,"Aug"]
[null,null,null,null,null,null,null,null,null,null,"Sep"]
[null,null,null,null,null,null,null,null,null,null,"Oct"]
[null,null,null,null,null,null,null,null,null,null,"Nov"]
[null,null,null,null,null,null,null,null,null,null,"Dec"]
[null,null,null,null,null,null,null,null,null,null,"Annual",{"$f":"AVERAGE(L67:L78)","v":{"$error":"#DIV/0!"}},{"$f":"MAX(M67:M78)","v":0},{"$f":"AVERAGE(N67:N78)","v":{"$error":"#DIV/0!"}},{"$f":"MAX(O67:O78)","v":0}]

{"sheet":"SO2","index":16,"n_rows":79,"n_cols":15,"rows_kept":79,"cut":false,"hidden":false,"merged":[[66,9,78,9],[4,1,4,3],[4,4,4,6],[4,9,4,14],[6,9,18,9],[21,9,33,9],[36,9,48,9],[47,0,47,6],[48,0,51,6],[51,9,63,9],[18,4,18,6]]}
[{"$f":"+'Cover Page'!$B$29","v":"Annual Performance Report 2024"},null,null,null,{"$f":"+'Cover Page'!$B$33","v":"Kemsley Generating Station"}]
[]
["Monitoring of Sulphur dioxide emissions",null,null,"Whole Installation",null,null,"See  Notes in Cell Q3",null,null,{"$f":"+A3","v":"Monitoring of Sulphur dioxide emissions"},null,null,null,"Per Combustion Line"]
[]
[{"$f":"+'Cover Page'!C39","v":2024},"1/2 Hourly Reference Periods",null,null,"Daily Reference Periods"]
["mg/Nm3","1/2 hourly SO2 ELV","Monthly mean of half-hourly averages","Highest half- hourly average","Daily SO2 ELV","Monthly mean of  daily averages","Highest daily average",null,null,{"$f":"+A5","v":2024},"mg/Nm3","Monthly mean of half-hourly averages","Highest half- hourly average","Monthly mean of  daily averages","Highest daily average"]
["Jan",200,{"$f":"AVERAGE(L7,L22)","v":3.8499999999999996},{"$f":"MAX(M7,M22)","v":105.5},40,{"$f":"AVERAGE(N7,N22)","v":3.8449999999999998},{"$f":"MAX(O7,O22)","v":18.12},null,null,"A1","Jan",3.4,66.8,3.42,13.16]
["Feb",200,{"$f":"AVERAGE(L8,L23)","v":1.75},{"$f":"MAX(M8,M23)","v":38.799999999999997},40,{"$f":"AVERAGE(N8,N23)","v":1.72},{"$f":"MAX(O8,O23)","v":7.85},null,null,null,"Feb",2,38.799999999999997,1.98,5.82]
["Mar",200,2.3499999999999996,34.6,40,2.36,7.62,null,null,null,"Mar",2.2999999999999998,26.2,2.34,5.29]
["Apr",200,1.1000000000000001,22.4,40,1.06,5,null,null,null,"Apr",1.4,17.899999999999999,1.36,3.97]
["May",200,0.85000000000000009,36.4,40,0.94,7.61,null,null,null,"May",0.8,36.4,0.94,2.59]
["Jun",200,2.1,43.4,40,2.09,18.73,null,null,null,"Jun",2.1,34,2.08,18.73]
["Jul",200,2.8,153,40,2.77,22.26,null,null,null,"Jul",2.2999999999999998,153,2.29,6.73]
["Aug",200,1.4,23.5,40,1.3900000000000001,5.45,null,null,null,"Aug",1.8,23.4,1.78,5.45]
["Sep",200,2.75,39.799999999999997,40,2.7750000000000004,8.07,null,null,null,"Sep",2.7,35.1,2.74,8.07]
["Oct",200,2.2999999999999998,98.6,40,2.2850000000000001,16.760000000000002,null,null,null,"Oct",3.1,98.6,3.11,16.760000000000002]
["Nov",200,2.4,53.6,40,2.3849999999999998,6.84,null,null,null,"Nov",2.2999999999999998,27.2,2.2999999999999998,4.93]
["Dec",200,5.3,86.4,40,5.2649999999999997,23.73,null,null,null,"Dec",6,86.4,5.97,23.73]
[null,null,null,null,null,null,null,null,null,null,"Annual",{"$f":"AVERAGE(L7:L18)","v":2.5166666666666671},{"$f":"MAX(M7:M18)","v":153},{"$f":"AVERAGE(N7:N18)","v":2.5258333333333334},{"$f":"MAX(O7:O18)","v":23.73}]
[]
[null,null,null,null,null,null,null,null,null,{"$f":"+A5","v":2024},"mg/Nm3","Monthly mean of half-hourly averages","Highest half- hourly average","Monthly mean of  daily averages","Highest daily average"]
[null,null,null,null,null,null,null,null,null,"A2","Jan",4.3,105.5,4.2699999999999996,18.12]
[null,null,null,null,null,null,null,null,null,null,"Feb",1.5,32,1.46,7.85]
[null,null,null,null,null,null,null,null,null,null,"Mar",2.4,34.6,2.38,7.62]
[null,null,null,null,null,null,null,null,null,null,"Apr",0.8,22.4,0.76,5]
[null,null,null,null,null,null,null,null,null,null,"May",0.9,24.2,0.94,7.61]
[null,null,null,null,null,null,null,null,null,null,"Jun",2.1,43.4,2.1,15.33]
[null,null,null,null,null,null,null,null,null,null,"Jul",3.3,61.4,3.25,22.26]
[null,null,null,null,null,null,null,null,null,null,"Aug",1,23.5,1,4.08]
[null,null,null,null,null,null,null,null,null,null,"Sep",2.8,39.799999999999997,2.81,6.96]
[null,null,null,null,null,null,null,null,null,null,"Oct",1.5,41.5,1.46,3.11]
[null,null,null,null,null,null,null,null,null,null,"Nov",2.5,53.6,2.4700000000000002,6.84]
[null,null,null,null,null,null,null,null,null,null,"Dec",4.5999999999999996,70.8,4.5599999999999996,13.2]
[null,null,null,null,null,null,null,null,null,null,"Annual",{"$f":"AVERAGE(L22:L33)","v":2.3083333333333336},{"$f":"MAX(M22:M33)","v":105.5},{"$f":"AVERAGE(N22:N33)","v":2.2883333333333327},{"$f":"MAX(O22:O33)","v":22.26}]
[]
[null,null,null,null,null,null,null,null,null,{"$f":"+A5","v":2024},"mg/Nm3","Monthly mean of half-hourly averages","Highest half- hourly average","Monthly mean of  daily averages","Highest daily average"]
[null,null,null,null,null,null,null,null,null,"A3","Jan"]
[null,null,null,null,null,null,null,null,null,null,"Feb"]
[null,null,null,null,null,null,null,null,null,null,"Mar"]
[null,null,null,null,null,null,null,null,null,null,"Apr"]
[null,null,null,null,null,null,null,null,null,null,"May"]
[null,null,null,null,null,null,null,null,null,null,"Jun"]
[null,null,null,null,null,null,null,null,null,null,"Jul"]
[null,null,null,null,null,null,null,null,null,null,"Aug"]
[null,null,null,null,null,null,null,null,null,null,"Sep"]
[null,null,null,null,null,null,null,null,null,null,"Oct"]
[null,null,null,null,null,null,null,null,null,null,"Nov"]
["Comments :",null,null,null,null,null,null,null,null,null,"Dec"]
[null,null,null,null,null,null,null,null,null,null,"Annual",{"$f":"AVERAGE(L37:L48)","v":{"$error":"#DIV/0!"}},{"$f":"MAX(M37:M48)","v":0},{"$f":"AVERAGE(N37:N48)","v":{"$error":"#DIV/0!"}},{"$f":"MAX(O37:O48)","v":0}]
[]
[null,null,null,null,null,null,null,null,null,{"$f":"+A5","v":2024},"mg/Nm3","Monthly mean of half-hourly averages","Highest half- hourly average","Monthly mean of  daily averages","Highest daily average"]
[null,null,null,null,null,null,null,null,null,"A4","Jan"]
[null,null,null,null,null,null,null,null,null,null,"Feb"]
[null,null,null,null,null,null,null,null,null,null,"Mar"]
[null,null,null,null,null,null,null,null,null,null,"Apr"]
[null,null,null,null,null,null,null,null,null,null,"May"]
[null,null,null,null,null,null,null,null,null,null,"Jun"]
[null,null,null,null,null,null,null,null,null,null,"Jul"]
[null,null,null,null,null,null,null,null,null,null,"Aug"]
[null,null,null,null,null,null,null,null,null,null,"Sep"]
[null,null,null,null,null,null,null,null,null,null,"Oct"]
[null,null,null,null,null,null,null,null,null,null,"Nov"]
[null,null,null,null,null,null,null,null,null,null,"Dec"]
[null,null,null,null,null,null,null,null,null,null,"Annual",{"$f":"AVERAGE(L52:L63)","v":{"$error":"#DIV/0!"}},{"$f":"MAX(M52:M63)","v":0},{"$f":"AVERAGE(N52:N63)","v":{"$error":"#DIV/0!"}},{"$f":"MAX(O52:O63)","v":0}]
[]
[null,null,null,null,null,null,null,null,null,{"$f":"+A5","v":2024},"mg/Nm3","Monthly mean of half-hourly averages","Highest half- hourly average","Monthly mean of  daily averages","Highest daily average"]
[null,null,null,null,null,null,null,null,null,"A5","Jan"]
[null,null,null,null,null,null,null,null,null,null,"Feb"]
[null,null,null,null,null,null,null,null,null,null,"Mar"]
[null,null,null,null,null,null,null,null,null,null,"Apr"]
[null,null,null,null,null,null,null,null,null,null,"May"]
[null,null,null,null,null,null,null,null,null,null,"Jun"]
[null,null,null,null,null,null,null,null,null,null,"Jul"]
[null,null,null,null,null,null,null,null,null,null,"Aug"]
[null,null,null,null,null,null,null,null,null,null,"Sep"]
[null,null,null,null,null,null,null,null,null,null,"Oct"]
[null,null,null,null,null,null,null,null,null,null,"Nov"]
[null,null,null,null,null,null,null,null,null,null,"Dec"]
[null,null,null,null,null,null,null,null,null,null,"Annual",{"$f":"AVERAGE(L67:L78)","v":{"$error":"#DIV/0!"}},{"$f":"MAX(M67:M78)","v":0},{"$f":"AVERAGE(N67:N78)","v":{"$error":"#DIV/0!"}},{"$f":"MAX(O67:O78)","v":0}]

{"sheet":"NOx","index":17,"n_rows":79,"n_cols":15,"rows_kept":79,"cut":false,"hidden":false,"merged":[[66,9,78,9],[4,1,4,3],[4,4,4,6],[4,9,4,14],[6,9,18,9],[21,9,33,9],[36,9,48,9],[47,0,47,6],[48,0,51,6],[51,9,63,9],[18,4,18,6]]}
[{"$f":"+'Cover Page'!$B$29","v":"Annual Performance Report 2024"},null,null,null,{"$f":"+'Cover Page'!$B$33","v":"Kemsley Generating Station"}]
[]
["Monitoring of Oxides of Nitrogen emissions",null,null,"Whole Installation",null,null,"See  Notes in Cell Q3",null,null,{"$f":"+A3","v":"Monitoring of Oxides of Nitrogen emissions"},null,null,null,"Per Combustion Line"]
[]
[{"$f":"+'Cover Page'!C39","v":2024},"1/2 Hourly Reference Periods",null,null,"Daily Reference Periods"]
["mg/Nm3","1/2 hourly NOx ELV","Monthly mean of half-hourly averages","Highest half- hourly average","Daily NOx ELV","Monthly mean of  daily averages","Highest daily average",null,null,{"$f":"+A5","v":2024},"mg/Nm3","Monthly mean of half-hourly averages","Highest half- hourly average","Monthly mean of  daily averages","Highest daily average"]
["Jan",400,{"$f":"AVERAGE(L7,L22)","v":163},{"$f":"MAX(M7,M22)","v":219.3},180,{"$f":"AVERAGE(N7,N22)","v":162.965},{"$f":"MAX(O7,O22)","v":170.03},null,null,"A1","Jan",163.4,219.3,163.37,169.74]
["Feb",400,{"$f":"AVERAGE(L8,L23)","v":161.19999999999999},{"$f":"MAX(M8,M23)","v":198.9},180,{"$f":"AVERAGE(N8,N23)","v":161.19999999999999},{"$f":"MAX(O8,O23)","v":162.24},null,null,null,"Feb",161.1,198.9,161.09,162.24]
["Mar",400,161.60000000000002,218.7,180,161.58999999999997,164.04,null,null,null,"Mar",161.9,218.7,161.91999999999999,164.04]
["Apr",400,161.75,208.9,180,161.73000000000002,168.15,null,null,null,"Apr",162.19999999999999,208.9,162.19,168.15]
["May",400,169.35000000000002,198.5,180,169.29,170.36,null,null,null,"May",169.4,198.5,169.29,170.36]
["Jun",400,168.45,231.4,180,168.46499999999997,173.65,null,null,null,"Jun",167.4,231.4,167.45,173.65]
["Jul",400,169.5,237.5,180,169.45999999999998,171.45,null,null,null,"Jul",169.7,237.5,169.67,171.02]
["Aug",400,169.55,227.1,180,169.54000000000002,171.16,null,null,null,"Aug",169.7,227.1,169.71,171.02]
["Sep",400,169.25,235.1,180,169.27999999999997,170.56,null,null,null,"Sep",169.6,235.1,169.64,170.56]
["Oct",400,169.6,209.9,180,169.58499999999998,171.6,null,null,null,"Oct",169.7,209.9,169.7,171.6]
["Nov",400,169.6,208.2,180,169.59,170.03,null,null,null,"Nov",169.6,208.2,169.62,170.03]
["Dec",400,169.15,192.5,180,169.14500000000001,170.04,null,null,null,"Dec",169,192.5,168.99,169.93]
[null,null,null,null,null,null,null,null,null,null,"Annual",{"$f":"AVERAGE(L7:L18)","v":166.89166666666665},{"$f":"MAX(M7:M18)","v":237.5},{"$f":"AVERAGE(N7:N18)","v":166.88666666666668},{"$f":"MAX(O7:O18)","v":173.65}]
[]
[null,null,null,null,null,null,null,null,null,{"$f":"+A5","v":2024},"mg/Nm3","Monthly mean of half-hourly averages","Highest half- hourly average","Monthly mean of  daily averages","Highest daily average"]
[null,null,null,null,null,null,null,null,null,"A2","Jan",162.6,184.6,162.56,170.03]
[null,null,null,null,null,null,null,null,null,null,"Feb",161.30000000000001,185.7,161.31,162]
[null,null,null,null,null,null,null,null,null,null,"Mar",161.30000000000001,183.7,161.26,162.12]
[null,null,null,null,null,null,null,null,null,null,"Apr",161.30000000000001,182.5,161.27000000000001,167.02]
[null,null,null,null,null,null,null,null,null,null,"May",169.3,194.2,169.29,170.23]
[null,null,null,null,null,null,null,null,null,null,"Jun",169.5,195.9,169.48,170.95]
[null,null,null,null,null,null,null,null,null,null,"Jul",169.3,192.1,169.25,171.45]
[null,null,null,null,null,null,null,null,null,null,"Aug",169.4,195.3,169.37,171.16]
[null,null,null,null,null,null,null,null,null,null,"Sep",168.9,191.1,168.92,169.81]
[null,null,null,null,null,null,null,null,null,null,"Oct",169.5,195.7,169.47,169.98]
[null,null,null,null,null,null,null,null,null,null,"Nov",169.6,188.2,169.56,169.88]
[null,null,null,null,null,null,null,null,null,null,"Dec",169.3,189.8,169.3,170.04]
[null,null,null,null,null,null,null,null,null,null,"Annual",{"$f":"AVERAGE(L22:L33)","v":166.77500000000001},{"$f":"MAX(M22:M33)","v":195.9},{"$f":"AVERAGE(N22:N33)","v":166.75333333333333},{"$f":"MAX(O22:O33)","v":171.45}]
[]
[null,null,null,null,null,null,null,null,null,{"$f":"+A5","v":2024},"mg/Nm3","Monthly mean of half-hourly averages","Highest half- hourly average","Monthly mean of  daily averages","Highest daily average"]
[null,null,null,null,null,null,null,null,null,"A3","Jan"]
[null,null,null,null,null,null,null,null,null,null,"Feb"]
[null,null,null,null,null,null,null,null,null,null,"Mar"]
[null,null,null,null,null,null,null,null,null,null,"Apr"]
[null,null,null,null,null,null,null,null,null,null,"May"]
[null,null,null,null,null,null,null,null,null,null,"Jun"]
[null,null,null,null,null,null,null,null,null,null,"Jul"]
[null,null,null,null,null,null,null,null,null,null,"Aug"]
[null,null,null,null,null,null,null,null,null,null,"Sep"]
[null,null,null,null,null,null,null,null,null,null,"Oct"]
[null,null,null,null,null,null,null,null,null,null,"Nov"]
["Comments :",null,null,null,null,null,null,null,null,null,"Dec"]
[null,null,null,null,null,null,null,null,null,null,"Annual",{"$f":"AVERAGE(L37:L48)","v":{"$error":"#DIV/0!"}},{"$f":"MAX(M37:M48)","v":0},{"$f":"AVERAGE(N37:N48)","v":{"$error":"#DIV/0!"}},{"$f":"MAX(O37:O48)","v":0}]
[]
[null,null,null,null,null,null,null,null,null,{"$f":"+A5","v":2024},"mg/Nm3","Monthly mean of half-hourly averages","Highest half- hourly average","Monthly mean of  daily averages","Highest daily average"]
[null,null,null,null,null,null,null,null,null,"A4","Jan"]
[null,null,null,null,null,null,null,null,null,null,"Feb"]
[null,null,null,null,null,null,null,null,null,null,"Mar"]
[null,null,null,null,null,null,null,null,null,null,"Apr"]
[null,null,null,null,null,null,null,null,null,null,"May"]
[null,null,null,null,null,null,null,null,null,null,"Jun"]
[null,null,null,null,null,null,null,null,null,null,"Jul"]
[null,null,null,null,null,null,null,null,null,null,"Aug"]
[null,null,null,null,null,null,null,null,null,null,"Sep"]
[null,null,null,null,null,null,null,null,null,null,"Oct"]
[null,null,null,null,null,null,null,null,null,null,"Nov"]
[null,null,null,null,null,null,null,null,null,null,"Dec"]
[null,null,null,null,null,null,null,null,null,null,"Annual",{"$f":"AVERAGE(L52:L63)","v":{"$error":"#DIV/0!"}},{"$f":"MAX(M52:M63)","v":0},{"$f":"AVERAGE(N52:N63)","v":{"$error":"#DIV/0!"}},{"$f":"MAX(O52:O63)","v":0}]
[]
[null,null,null,null,null,null,null,null,null,{"$f":"+A5","v":2024},"mg/Nm3","Monthly mean of half-hourly averages","Highest half- hourly average","Monthly mean of  daily averages","Highest daily average"]
[null,null,null,null,null,null,null,null,null,"A5","Jan"]
[null,null,null,null,null,null,null,null,null,null,"Feb"]
[null,null,null,null,null,null,null,null,null,null,"Mar"]
[null,null,null,null,null,null,null,null,null,null,"Apr"]
[null,null,null,null,null,null,null,null,null,null,"May"]
[null,null,null,null,null,null,null,null,null,null,"Jun"]
[null,null,null,null,null,null,null,null,null,null,"Jul"]
[null,null,null,null,null,null,null,null,null,null,"Aug"]
[null,null,null,null,null,null,null,null,null,null,"Sep"]
[null,null,null,null,null,null,null,null,null,null,"Oct"]
[null,null,null,null,null,null,null,null,null,null,"Nov"]
[null,null,null,null,null,null,null,null,null,null,"Dec"]
[null,null,null,null,null,null,null,null,null,null,"Annual",{"$f":"AVERAGE(L67:L78)","v":{"$error":"#DIV/0!"}},{"$f":"MAX(M67:M78)","v":0},{"$f":"AVERAGE(N67:N78)","v":{"$error":"#DIV/0!"}},{"$f":"MAX(O67:O78)","v":0}]

{"sheet":"TOC","index":18,"n_rows":79,"n_cols":15,"rows_kept":79,"cut":false,"hidden":false,"merged":[[66,9,78,9],[4,1,4,3],[4,4,4,6],[4,9,4,14],[6,9,18,9],[21,9,33,9],[36,9,48,9],[47,0,47,6],[48,0,51,6],[51,9,63,9]]}
[{"$f":"+'Cover Page'!$B$29","v":"Annual Performance Report 2024"},null,null,null,{"$f":"+'Cover Page'!$B$33","v":"Kemsley Generating Station"}]
[]
["Monitoring of Total organic carbon emissions",null,null,"Whole Installation",null,null,"See  Notes in Cell Q3",null,null,{"$f":"+A3","v":"Monitoring of Total organic carbon emissions"},null,null,null,"Per Combustion Line"]
[]
[{"$f":"+'Cover Page'!C39","v":2024},"1/2 Hourly Reference Periods",null,null,"Daily Reference Periods"]
["mg/Nm3","1/2 hourly TOC ELV","Monthly mean of half-hourly averages","Highest half- hourly average","Daily TOC ELV","Monthly mean of  daily averages","Highest daily average",null,null,{"$f":"+A5","v":2024},"mg/Nm3","Monthly mean of half-hourly averages","Highest half- hourly average","Monthly mean of  daily averages","Highest daily average"]
["Jan",20,{"$f":"AVERAGE(L7,L22)","v":0.15000000000000002},{"$f":"MAX(M7,M22)","v":1.5},10,{"$f":"AVERAGE(N7,N22)","v":0.15},{"$f":"MAX(O7,O22)","v":0.37},null,null,"A1","Jan",0.2,1.5,0.22,0.37]
["Feb",20,{"$f":"AVERAGE(L8,L23)","v":0.15000000000000002},{"$f":"MAX(M8,M23)","v":7.4},10,{"$f":"AVERAGE(N8,N23)","v":0.16499999999999998},{"$f":"MAX(O8,O23)","v":0.6},null,null,null,"Feb",0.2,7.4,0.24,0.6]
["Mar",20,0.15000000000000002,2,10,0.15,0.34,null,null,null,"Mar",0.1,2,0.12,0.18]
["Apr",20,0.15000000000000002,3.8,10,0.155,0.31,null,null,null,"Apr",0.2,2.1,0.19,0.31]
["May",20,0.2,4.2,10,0.15,0.51,null,null,null,"May",0.2,4.2,0.15,0.51]
["Jun",20,0.30000000000000004,4.5,10,0.26500000000000001,1.18,null,null,null,"Jun",0.4,2.1,0.38,1.18]
["Jul",20,0.25,4.4000000000000004,10,0.25,0.97,null,null,null,"Jul",0.2,1.9,0.22,0.28000000000000003]
["Aug",20,0.2,2.9,10,0.22,0.44,null,null,null,"Aug",0.2,2.9,0.21,0.31]
["Sep",20,0.2,3.5,10,0.22,0.36,null,null,null,"Sep",0.2,1.7,0.22,0.36]
["Oct",20,0.2,2.8,10,0.21,1.1499999999999999,null,null,null,"Oct",0.2,2.8,0.21,0.67]
["Nov",20,0.15000000000000002,3.4,10,0.16500000000000001,0.32,null,null,null,"Nov",0.2,2.7,0.2,0.32]
["Dec",20,0.25,3.7,10,0.21000000000000002,0.97,null,null,null,"Dec",0.3,3.7,0.26,0.97]
[null,null,null,null,null,null,null,null,null,null,"Annual",{"$f":"AVERAGE(L7:L18)","v":0.21666666666666665},{"$f":"MAX(M7:M18)","v":7.4},{"$f":"AVERAGE(N7:N18)","v":0.21833333333333335},{"$f":"MAX(O7:O18)","v":1.18}]
[]
[null,null,null,null,null,null,null,null,null,{"$f":"+A5","v":2024},"mg/Nm3","Monthly mean of half-hourly averages","Highest half- hourly average","Monthly mean of  daily averages","Highest daily average"]
[null,null,null,null,null,null,null,null,null,"A2","Jan",0.1,1.2,0.08,0.11]
[null,null,null,null,null,null,null,null,null,null,"Feb",0.1,6,0.09,0.2]
[null,null,null,null,null,null,null,null,null,null,"Mar",0.2,1.9,0.18,0.34]
[null,null,null,null,null,null,null,null,null,null,"Apr",0.1,3.8,0.12,0.22]
[null,null,null,null,null,null,null,null,null,null,"May",0.2,1.2,0.15,0.41]
[null,null,null,null,null,null,null,null,null,null,"Jun",0.2,4.5,0.15,0.28000000000000003]
[null,null,null,null,null,null,null,null,null,null,"Jul",0.3,4.4000000000000004,0.28000000000000003,0.97]
[null,null,null,null,null,null,null,null,null,null,"Aug",0.2,2.8,0.23,0.44]
[null,null,null,null,null,null,null,null,null,null,"Sep",0.2,3.5,0.22,0.36]
[null,null,null,null,null,null,null,null,null,null,"Oct",0.2,2.2000000000000002,0.21,1.1499999999999999]
[null,null,null,null,null,null,null,null,null,null,"Nov",0.1,3.4,0.13,0.23]
[null,null,null,null,null,null,null,null,null,null,"Dec",0.2,1.6,0.16,0.22]
[null,null,null,null,null,null,null,null,null,null,"Annual",{"$f":"AVERAGE(L22:L33)","v":0.17500000000000002},{"$f":"MAX(M22:M33)","v":6},{"$f":"AVERAGE(N22:N33)","v":0.16666666666666666},{"$f":"MAX(O22:O33)","v":1.1499999999999999}]
[]
[null,null,null,null,null,null,null,null,null,{"$f":"+A5","v":2024},"mg/Nm3","Monthly mean of half-hourly averages","Highest half- hourly average","Monthly mean of  daily averages","Highest daily average"]
[null,null,null,null,null,null,null,null,null,"A3","Jan"]
[null,null,null,null,null,null,null,null,null,null,"Feb"]
[null,null,null,null,null,null,null,null,null,null,"Mar"]
[null,null,null,null,null,null,null,null,null,null,"Apr"]
[null,null,null,null,null,null,null,null,null,null,"May"]
[null,null,null,null,null,null,null,null,null,null,"Jun"]
[null,null,null,null,null,null,null,null,null,null,"Jul"]
[null,null,null,null,null,null,null,null,null,null,"Aug"]
[null,null,null,null,null,null,null,null,null,null,"Sep"]
[null,null,null,null,null,null,null,null,null,null,"Oct"]
[null,null,null,null,null,null,null,null,null,null,"Nov"]
["Comments :",null,null,null,null,null,null,null,null,null,"Dec"]
[null,null,null,null,null,null,null,null,null,null,"Annual",{"$f":"AVERAGE(L37:L48)","v":{"$error":"#DIV/0!"}},{"$f":"MAX(M37:M48)","v":0},{"$f":"AVERAGE(N37:N48)","v":{"$error":"#DIV/0!"}},{"$f":"MAX(O37:O48)","v":0}]
[]
[null,null,null,null,null,null,null,null,null,{"$f":"+A5","v":2024},"mg/Nm3","Monthly mean of half-hourly averages","Highest half- hourly average","Monthly mean of  daily averages","Highest daily average"]
[null,null,null,null,null,null,null,null,null,"A4","Jan"]
[null,null,null,null,null,null,null,null,null,null,"Feb"]
[null,null,null,null,null,null,null,null,null,null,"Mar"]
[null,null,null,null,null,null,null,null,null,null,"Apr"]
[null,null,null,null,null,null,null,null,null,null,"May"]
[null,null,null,null,null,null,null,null,null,null,"Jun"]
[null,null,null,null,null,null,null,null,null,null,"Jul"]
[null,null,null,null,null,null,null,null,null,null,"Aug"]
[null,null,null,null,null,null,null,null,null,null,"Sep"]
[null,null,null,null,null,null,null,null,null,null,"Oct"]
[null,null,null,null,null,null,null,null,null,null,"Nov"]
[null,null,null,null,null,null,null,null,null,null,"Dec"]
[null,null,null,null,null,null,null,null,null,null,"Annual",{"$f":"AVERAGE(L52:L63)","v":{"$error":"#DIV/0!"}},{"$f":"MAX(M52:M63)","v":0},{"$f":"AVERAGE(N52:N63)","v":{"$error":"#DIV/0!"}},{"$f":"MAX(O52:O63)","v":0}]
[]
[null,null,null,null,null,null,null,null,null,{"$f":"+A5","v":2024},"mg/Nm3","Monthly mean of half-hourly averages","Highest half- hourly average","Monthly mean of  daily averages","Highest daily average"]
[null,null,null,null,null,null,null,null,null,"A5","Jan"]
[null,null,null,null,null,null,null,null,null,null,"Feb"]
[null,null,null,null,null,null,null,null,null,null,"Mar"]
[null,null,null,null,null,null,null,null,null,null,"Apr"]
[null,null,null,null,null,null,null,null,null,null,"May"]
[null,null,null,null,null,null,null,null,null,null,"Jun"]
[null,null,null,null,null,null,null,null,null,null,"Jul"]
[null,null,null,null,null,null,null,null,null,null,"Aug"]
[null,null,null,null,null,null,null,null,null,null,"Sep"]
[null,null,null,null,null,null,null,null,null,null,"Oct"]
[null,null,null,null,null,null,null,null,null,null,"Nov"]
[null,null,null,null,null,null,null,null,null,null,"Dec"]
[null,null,null,null,null,null,null,null,null,null,"Annual",{"$f":"AVERAGE(L67:L78)","v":{"$error":"#DIV/0!"}},{"$f":"MAX(M67:M78)","v":0},{"$f":"AVERAGE(N67:N78)","v":{"$error":"#DIV/0!"}},{"$f":"MAX(O67:O78)","v":0}]

{"sheet":"Particulates","index":19,"n_rows":79,"n_cols":15,"rows_kept":79,"cut":false,"hidden":false,"merged":[[66,9,78,9],[4,1,4,3],[4,4,4,6],[4,9,4,14],[6,9,18,9],[21,9,33,9],[36,9,48,9],[47,0,47,6],[48,0,51,6],[51,9,63,9],[18,4,18,6]]}
[{"$f":"+'Cover Page'!$B$29","v":"Annual Performance Report 2024"},null,null,null,{"$f":"+'Cover Page'!$B$33","v":"Kemsley Generating Station"}]
[]
["Monitoring of Particulate matter emissions",null,null,"Whole Installation",null,null,"See  Notes in Cell Q3",null,null,{"$f":"+A3","v":"Monitoring of Particulate matter emissions"},null,null,null,"Per Combustion Line"]
[]
[{"$f":"+'Cover Page'!C39","v":2024},"1/2 Hourly Reference Periods",null,null,"Daily Reference Periods"]
["mg/Nm3","1/2 hourly PM ELV","Monthly mean of half-hourly averages","Highest half- hourly average","Daily PM ELV","Monthly mean of  daily averages","Highest daily average",null,null,{"$f":"+A5","v":2024},"mg/Nm3","Monthly mean of half-hourly averages","Highest half- hourly average","Monthly mean of  daily averages","Highest daily average"]
["Jan",30,{"$f":"AVERAGE(L7,L22)","v":0.15000000000000002},{"$f":"MAX(M7,M22)","v":4.2},5,{"$f":"AVERAGE(N7,N22)","v":0.13},{"$f":"MAX(O7,O22)","v":1.0900000000000001},null,null,"A1","Jan",0.1,0.1,7.0000000000000007E-2,0.08]
["Feb",30,{"$f":"AVERAGE(L8,L23)","v":0.15000000000000002},{"$f":"MAX(M8,M23)","v":5.4},5,{"$f":"AVERAGE(N8,N23)","v":0.16},{"$f":"MAX(O8,O23)","v":0.6},null,null,null,"Feb",0.2,5.4,0.18,0.6]
["Mar",30,0.1,0.5,5,0.115,0.23,null,null,null,"Mar",0.1,0.5,0.1,0.18]
["Apr",30,0.15000000000000002,0.7,5,0.115,0.3,null,null,null,"Apr",0.1,0.1,7.0000000000000007E-2,7.0000000000000007E-2]
["May",30,0.15000000000000002,1.2,5,0.18,0.54,null,null,null,"May",0.1,0.2,0.18,0.1]
["Jun",30,0.15000000000000002,2.1,5,0.13,0.7,null,null,null,"Jun",0.1,0.2,0.08,0.09]
["Jul",30,0.1,0.3,5,8.4999999999999992E-2,0.15,null,null,null,"Jul",0.1,0.2,0.08,0.09]
["Aug",30,0.1,0.6,5,8.4999999999999992E-2,0.22,null,null,null,"Aug",0.1,0.1,0.08,0.09]
["Sep",30,0.1,0.1,5,8.4999999999999992E-2,0.1,null,null,null,"Sep",0.1,0.1,0.09,0.1]
["Oct",30,0.1,0.2,5,8.4999999999999992E-2,0.12,null,null,null,"Oct",0.1,0.2,0.08,0.11]
["Nov",30,0.1,0.2,5,0.09,0.1,null,null,null,"Nov",0.1,0.2,0.09,0.1]
["Dec",30,0.1,0.4,5,9.5000000000000001E-2,0.15,null,null,null,"Dec",0.1,0.4,0.1,0.15]
[null,null,null,null,null,null,null,null,null,null,"Annual",{"$f":"AVERAGE(L7:L18)","v":0.10833333333333334},{"$f":"MAX(M7:M18)","v":5.4},{"$f":"AVERAGE(N7:N18)","v":9.9999999999999992E-2},{"$f":"MAX(O7:O18)","v":0.6}]
[]
[null,null,null,null,null,null,null,null,null,{"$f":"+A5","v":2024},"mg/Nm3","Monthly mean of half-hourly averages","Highest half- hourly average","Monthly mean of  daily averages","Highest daily average"]
[null,null,null,null,null,null,null,null,null,"A2","Jan",0.2,4.2,0.19,1.0900000000000001]
[null,null,null,null,null,null,null,null,null,null,"Feb",0.1,3.4,0.14000000000000001,0.3]
[null,null,null,null,null,null,null,null,null,null,"Mar",0.1,0.4,0.13,0.23]
[null,null,null,null,null,null,null,null,null,null,"Apr",0.2,0.7,0.16,0.3]
[null,null,null,null,null,null,null,null,null,null,"May",0.2,1.2,0.18,0.54]
[null,null,null,null,null,null,null,null,null,null,"Jun",0.2,2.1,0.18,0.7]
[null,null,null,null,null,null,null,null,null,null,"Jul",0.1,0.3,0.09,0.15]
[null,null,null,null,null,null,null,null,null,null,"Aug",0.1,0.6,0.09,0.22]
[null,null,null,null,null,null,null,null,null,null,"Sep",0.1,0.1,0.08,0.09]
[null,null,null,null,null,null,null,null,null,null,"Oct",0.1,0.2,0.09,0.12]
[null,null,null,null,null,null,null,null,null,null,"Nov",0.1,0.1,0.09,0.1]
[null,null,null,null,null,null,null,null,null,null,"Dec",0.1,0.1,0.09,0.09]
[null,null,null,null,null,null,null,null,null,null,"Annual",{"$f":"AVERAGE(L22:L33)","v":0.13333333333333339},{"$f":"MAX(M22:M33)","v":4.2},{"$f":"AVERAGE(N22:N33)","v":0.12583333333333338},{"$f":"MAX(O22:O33)","v":1.0900000000000001}]
[]
[null,null,null,null,null,null,null,null,null,{"$f":"+A5","v":2024},"mg/Nm3","Monthly mean of half-hourly averages","Highest half- hourly average","Monthly mean of  daily averages","Highest daily average"]
[null,null,null,null,null,null,null,null,null,"A3","Jan"]
[null,null,null,null,null,null,null,null,null,null,"Feb"]
[null,null,null,null,null,null,null,null,null,null,"Mar"]
[null,null,null,null,null,null,null,null,null,null,"Apr"]
[null,null,null,null,null,null,null,null,null,null,"May"]
[null,null,null,null,null,null,null,null,null,null,"Jun"]
[null,null,null,null,null,null,null,null,null,null,"Jul"]
[null,null,null,null,null,null,null,null,null,null,"Aug"]
[null,null,null,null,null,null,null,null,null,null,"Sep"]
[null,null,null,null,null,null,null,null,null,null,"Oct"]
[null,null,null,null,null,null,null,null,null,null,"Nov"]
["Comments :",null,null,null,null,null,null,null,null,null,"Dec"]
[null,null,null,null,null,null,null,null,null,null,"Annual",{"$f":"AVERAGE(L37:L48)","v":{"$error":"#DIV/0!"}},{"$f":"MAX(M37:M48)","v":0},{"$f":"AVERAGE(N37:N48)","v":{"$error":"#DIV/0!"}},{"$f":"MAX(O37:O48)","v":0}]
[]
[null,null,null,null,null,null,null,null,null,{"$f":"+A5","v":2024},"mg/Nm3","Monthly mean of half-hourly averages","Highest half- hourly average","Monthly mean of  daily averages","Highest daily average"]
[null,null,null,null,null,null,null,null,null,"A4","Jan"]
[null,null,null,null,null,null,null,null,null,null,"Feb"]
[null,null,null,null,null,null,null,null,null,null,"Mar"]
[null,null,null,null,null,null,null,null,null,null,"Apr"]
[null,null,null,null,null,null,null,null,null,null,"May"]
[null,null,null,null,null,null,null,null,null,null,"Jun"]
[null,null,null,null,null,null,null,null,null,null,"Jul"]
[null,null,null,null,null,null,null,null,null,null,"Aug"]
[null,null,null,null,null,null,null,null,null,null,"Sep"]
[null,null,null,null,null,null,null,null,null,null,"Oct"]
[null,null,null,null,null,null,null,null,null,null,"Nov"]
[null,null,null,null,null,null,null,null,null,null,"Dec"]
[null,null,null,null,null,null,null,null,null,null,"Annual",{"$f":"AVERAGE(L52:L63)","v":{"$error":"#DIV/0!"}},{"$f":"MAX(M52:M63)","v":0},{"$f":"AVERAGE(N52:N63)","v":{"$error":"#DIV/0!"}},{"$f":"MAX(O52:O63)","v":0}]
[]
[null,null,null,null,null,null,null,null,null,{"$f":"+A5","v":2024},"mg/Nm3","Monthly mean of half-hourly averages","Highest half- hourly average","Monthly mean of  daily averages","Highest daily average"]
[null,null,null,null,null,null,null,null,null,"A5","Jan"]
[null,null,null,null,null,null,null,null,null,null,"Feb"]
[null,null,null,null,null,null,null,null,null,null,"Mar"]
[null,null,null,null,null,null,null,null,null,null,"Apr"]
[null,null,null,null,null,null,null,null,null,null,"May"]
[null,null,null,null,null,null,null,null,null,null,"Jun"]
[null,null,null,null,null,null,null,null,null,null,"Jul"]
[null,null,null,null,null,null,null,null,null,null,"Aug"]
[null,null,null,null,null,null,null,null,null,null,"Sep"]
[null,null,null,null,null,null,null,null,null,null,"Oct"]
[null,null,null,null,null,null,null,null,null,null,"Nov"]
[null,null,null,null,null,null,null,null,null,null,"Dec"]
[null,null,null,null,null,null,null,null,null,null,"Annual",{"$f":"AVERAGE(L67:L78)","v":{"$error":"#DIV/0!"}},{"$f":"MAX(M67:M78)","v":0},{"$f":"AVERAGE(N67:N78)","v":{"$error":"#DIV/0!"}},{"$f":"MAX(O67:O78)","v":0}]

{"sheet":"CO 0.5 hourly","index":20,"n_rows":82,"n_cols":15,"rows_kept":82,"cut":false,"hidden":false,"merged":[[4,0,5,6],[69,9,81,9],[7,1,7,3],[7,4,7,6],[7,9,7,14],[9,9,21,9],[24,9,36,9],[39,9,51,9],[50,0,50,6],[51,0,54,6],[54,9,66,9]]}
[{"$f":"+'Cover Page'!$B$29","v":"Annual Performance Report 2024"},null,null,null,{"$f":"+'Cover Page'!$B$33","v":"Kemsley Generating Station"}]
[]
["Monitoring of Carbon Monoxide (half hourly)",null,null,"Whole Installation",null,null,"See  Notes in Cell Q3",null,null,{"$f":"+A3","v":"Monitoring of Carbon Monoxide (half hourly)"},null,null,null,"Per Combustion Line"]
[]
["Please complete this tab for your plant if you have 1/2 hourly CO ELVs; otherwise, leave it blank and complete the CO 95% 10 min tab"]
[]
[]
[{"$f":"+'Cover Page'!C39","v":2024},"1/2 Hourly Reference Periods",null,null,"Daily Reference Periods"]
["mg/Nm3","1/2 hourly CO ELV","Monthly mean of half-hourly averages","Highest half- hourly average","Daily CO ELV","Monthly mean of  daily averages","Highest daily average",null,null,{"$f":"+A8","v":2024},"mg/Nm3","Monthly mean of half-hourly averages","Highest half- hourly average","Monthly mean of  daily averages","Highest daily average"]
["Jan",100,null,null,50,null,null,null,null,"A1","Jan"]
["Feb",{"$f":"+B10","v":100},null,null,{"$f":"+E10","v":50},null,null,null,null,null,"Feb"]
["Mar",{"$f":"+B11","v":100},null,null,{"$f":"+E11","v":50},null,null,null,null,null,"Mar"]
["Apr",100,null,null,50,null,null,null,null,null,"Apr"]
["May",100,null,null,50,null,null,null,null,null,"May"]
["Jun",100,null,null,50,null,null,null,null,null,"Jun"]
["Jul",100,null,null,50,null,null,null,null,null,"Jul"]
["Aug",100,null,null,50,null,null,null,null,null,"Aug"]
["Sep",100,null,null,50,null,null,null,null,null,"Sep"]
["Oct",100,null,null,50,null,null,null,null,null,"Oct"]
["Nov",100,null,null,50,null,null,null,null,null,"Nov"]
["Dec",100,null,null,50,null,null,null,null,null,"Dec"]
[null,null,null,null,null,null,null,null,null,null,"Annual",{"$f":"AVERAGE(L10:L21)","v":{"$error":"#DIV/0!"}},{"$f":"MAX(M10:M21)","v":0},{"$f":"AVERAGE(N10:N21)","v":{"$error":"#DIV/0!"}},{"$f":"MAX(O10:O21)","v":0}]
[]
[null,null,null,null,null,null,null,null,null,{"$f":"+A8","v":2024},"mg/Nm3","Monthly mean of half-hourly averages","Highest half- hourly average","Monthly mean of  daily averages","Highest daily average"]
[null,null,null,null,null,null,null,null,null,"A2","Jan"]
[null,null,null,null,null,null,null,null,null,null,"Feb"]
[null,null,null,null,null,null,null,null,null,null,"Mar"]
[null,null,null,null,null,null,null,null,null,null,"Apr"]
[null,null,null,null,null,null,null,null,null,null,"May"]
[null,null,null,null,null,null,null,null,null,null,"Jun"]
[null,null,null,null,null,null,null,null,null,null,"Jul"]
[null,null,null,null,null,null,null,null,null,null,"Aug"]
[null,null,null,null,null,null,null,null,null,null,"Sep"]
[null,null,null,null,null,null,null,null,null,null,"Oct"]
[null,null,null,null,null,null,null,null,null,null,"Nov"]
[null,null,null,null,null,null,null,null,null,null,"Dec"]
[null,null,null,null,null,null,null,null,null,null,"Annual",{"$f":"AVERAGE(L25:L36)","v":{"$error":"#DIV/0!"}},{"$f":"MAX(M25:M36)","v":0},{"$f":"AVERAGE(N25:N36)","v":{"$error":"#DIV/0!"}},{"$f":"MAX(O25:O36)","v":0}]
[]
[null,null,null,null,null,null,null,null,null,{"$f":"+A8","v":2024},"mg/Nm3","Monthly mean of half-hourly averages","Highest half- hourly average","Monthly mean of  daily averages","Highest daily average"]
[null,null,null,null,null,null,null,null,null,"A3","Jan"]
[null,null,null,null,null,null,null,null,null,null,"Feb"]
[null,null,null,null,null,null,null,null,null,null,"Mar"]
[null,null,null,null,null,null,null,null,null,null,"Apr"]
[null,null,null,null,null,null,null,null,null,null,"May"]
[null,null,null,null,null,null,null,null,null,null,"Jun"]
[null,null,null,null,null,null,null,null,null,null,"Jul"]
[null,null,null,null,null,null,null,null,null,null,"Aug"]
[null,null,null,null,null,null,null,null,null,null,"Sep"]
[null,null,null,null,null,null,null,null,null,null,"Oct"]
[null,null,null,null,null,null,null,null,null,null,"Nov"]
["Comments :",null,null,null,null,null,null,null,null,null,"Dec"]
[null,null,null,null,null,null,null,null,null,null,"Annual",{"$f":"AVERAGE(L40:L51)","v":{"$error":"#DIV/0!"}},{"$f":"MAX(M40:M51)","v":0},{"$f":"AVERAGE(N40:N51)","v":{"$error":"#DIV/0!"}},{"$f":"MAX(O40:O51)","v":0}]
[]
[null,null,null,null,null,null,null,null,null,{"$f":"+A8","v":2024},"mg/Nm3","Monthly mean of half-hourly averages","Highest half- hourly average","Monthly mean of  daily averages","Highest daily average"]
[null,null,null,null,null,null,null,null,null,"A4","Jan"]
[null,null,null,null,null,null,null,null,null,null,"Feb"]
[null,null,null,null,null,null,null,null,null,null,"Mar"]
[null,null,null,null,null,null,null,null,null,null,"Apr"]
[null,null,null,null,null,null,null,null,null,null,"May"]
[null,null,null,null,null,null,null,null,null,null,"Jun"]
[null,null,null,null,null,null,null,null,null,null,"Jul"]
[null,null,null,null,null,null,null,null,null,null,"Aug"]
[null,null,null,null,null,null,null,null,null,null,"Sep"]
[null,null,null,null,null,null,null,null,null,null,"Oct"]
[null,null,null,null,null,null,null,null,null,null,"Nov"]
[null,null,null,null,null,null,null,null,null,null,"Dec"]
[null,null,null,null,null,null,null,null,null,null,"Annual",{"$f":"AVERAGE(L55:L66)","v":{"$error":"#DIV/0!"}},{"$f":"MAX(M55:M66)","v":0},{"$f":"AVERAGE(N55:N66)","v":{"$error":"#DIV/0!"}},{"$f":"MAX(O55:O66)","v":0}]
[]
[null,null,null,null,null,null,null,null,null,{"$f":"+A8","v":2024},"mg/Nm3","Monthly mean of half-hourly averages","Highest half- hourly average","Monthly mean of  daily averages","Highest daily average"]
[null,null,null,null,null,null,null,null,null,"A5","Jan"]
[null,null,null,null,null,null,null,null,null,null,"Feb"]
[null,null,null,null,null,null,null,null,null,null,"Mar"]
[null,null,null,null,null,null,null,null,null,null,"Apr"]
[null,null,null,null,null,null,null,null,null,null,"May"]
[null,null,null,null,null,null,null,null,null,null,"Jun"]
[null,null,null,null,null,null,null,null,null,null,"Jul"]
[null,null,null,null,null,null,null,null,null,null,"Aug"]
[null,null,null,null,null,null,null,null,null,null,"Sep"]
[null,null,null,null,null,null,null,null,null,null,"Oct"]
[null,null,null,null,null,null,null,null,null,null,"Nov"]
[null,null,null,null,null,null,null,null,null,null,"Dec"]
[null,null,null,null,null,null,null,null,null,null,"Annual",{"$f":"AVERAGE(L70:L81)","v":{"$error":"#DIV/0!"}},{"$f":"MAX(M70:M81)","v":0},{"$f":"AVERAGE(N70:N81)","v":{"$error":"#DIV/0!"}},{"$f":"MAX(O70:O81)","v":0}]

{"sheet":"CO 95% 10 min","index":21,"n_rows":82,"n_cols":17,"rows_kept":82,"cut":false,"hidden":false,"merged":[[4,0,5,7],[69,10,81,10],[7,1,7,4],[7,5,7,7],[7,10,7,16],[9,10,21,10],[24,10,36,10],[39,10,51,10],[50,0,50,7],[51,0,54,7],[54,10,66,10]]}
[{"$f":"+'Cover Page'!$B$29","v":"Annual Performance Report 2024"},null,null,null,{"$f":"+'Cover Page'!$B$33","v":"Kemsley Generating Station"}]
[]
["Monitoring of Carbon Monoxide (10-minute avg)",null,null,null,"Whole Installation",null,null,"See  Notes in Cell S3",null,{"$f":"+A3","v":"Monitoring of Carbon Monoxide (10-minute avg)"},null,null,null,null,"Per Combustion Line",null,"Notes:"]
[]
["Please complete this tab for your plant if you have 10-minute average CO ELVs; otherwise, leave it blank and complete the CO 0.5 hourly tab"]
[]
[]
[{"$f":"+'Cover Page'!C39","v":2024},"10-minute Reference Periods",null,null,null,"Daily Reference Periods"]
["mg/Nm3","95%ile 10-min avg CO ELV","Highest daily 95%ile 10-min average","Monthly mean of 10-min averages","Highest 10-min average","Daily CO ELV","Monthly mean of  daily averages","Highest daily average",null,null,{"$f":"+A8","v":2024},"mg/Nm3","Highest daily 95%ile 10-min average","Monthly mean of 10-min averages","Highest 10-min average","Monthly mean of  daily averages","Highest daily average"]
["Jan",150,{"$f":"MAX(M10,M25)","v":4.8},{"$f":"AVERAGE(N10,N25)","v":3.35},{"$f":"MAX(O10,O25)","v":54.4},50,{"$f":"AVERAGE(P10,P25)","v":3.34},{"$f":"MAX(Q10,Q25)","v":4.83},null,null,"A1","Jan",4.2,3.5,40.4,3.5,4.2]
["Feb",{"$f":"+B10","v":150},{"$f":"MAX(M11,M26)","v":9},{"$f":"AVERAGE(N11,N26)","v":3.4},{"$f":"MAX(O11,O26)","v":287.60000000000002},{"$f":"+F10","v":50},{"$f":"AVERAGE(P11,P26)","v":3.3849999999999998},{"$f":"MAX(Q11,Q26)","v":9.44},null,null,null,"Feb",4.3,3.5,173.9,3.52,9.44]
["Mar",{"$f":"+B11","v":150},6.2,3.3,91.8,{"$f":"+F11","v":50},3.3149999999999999,6.24,null,null,null,"Mar",6.2,3.8,91.8,3.8,6.24]
["Apr",150,13.3,4,133.6,50,3.9950000000000001,13.34,null,null,null,"Apr",6,3.8,133.6,3.8,6.01]
["May",150,6.1,3.0999999999999996,124.5,50,2.78,6.08,null,null,null,"May",6.1,3.4,124.5,2.78,6.08]
["Jun",150,{"$f":"MAX(M15,M30)","v":6.7},3.5,138.9,50,3.5,6.65,null,null,null,"Jun",6.7,3.7,106.9,3.69,6.65]
["Jul",150,9.6,3.5,236,50,3.48,9.64,null,null,null,"Jul",9.6,3.8,236,3.8,9.64]
["Aug",150,9.9,3.8,123.2,50,3.8,9.9499999999999993,null,null,null,"Aug",8.4,4.0999999999999996,107.6,4.08,8.3699999999999992]
["Sep",150,7,3.45,151,50,3.44,7.04,null,null,null,"Sep",6.4,3.7,93.8,3.69,6.42]
["Oct",150,{"$f":"MAX(M19,M34)","v":5},3,87.8,50,3.01,5.01,null,null,null,"Oct",5,3.6,87.8,3.62,5.01]
["Nov",150,7.7,3,93.9,50,2.9749999999999996,7.67,null,null,null,"Nov",7.7,3.8,93.9,3.76,7.67]
["Dec",150,{"$f":"MAX(M21,M36)","v":5.7},2.75,162.69999999999999,50,2.7549999999999999,5.7,null,null,null,"Dec",4.2,3.4,52.6,3.41,4.22]
[null,null,null,null,null,null,null,null,null,null,null,"Annual",{"$f":"AVERAGE(M10:M21)","v":6.2333333333333334},{"$f":"AVERAGE(N10:N21)","v":3.6750000000000003},{"$f":"MAX(O10:O21)","v":236},{"$f":"AVERAGE(P10:P21)","v":3.6208333333333336},{"$f":"MAX(Q10:Q21)","v":9.64}]
[]
[null,null,null,null,null,null,null,null,null,null,{"$f":"+A8","v":2024},"mg/Nm3","Highest daily 95%ile 10-min average","Monthly mean of 10-min averages","Highest 10-min average","Monthly mean of  daily averages","Highest daily average"]
[null,null,null,null,null,null,null,null,null,null,"A2","Jan",4.8,3.2,54.4,3.18,4.83]
[null,null,null,null,null,null,null,null,null,null,null,"Feb",9,3.3,287.60000000000002,3.25,8.9499999999999993]
[null,null,null,null,null,null,null,null,null,null,null,"Mar",4.0999999999999996,2.8,42.8,2.83,4.13]
[null,null,null,null,null,null,null,null,null,null,null,"Apr",13.3,4.2,123.7,4.1900000000000004,13.34]
[null,null,null,null,null,null,null,null,null,null,null,"May",5,2.8,76,2.78,5.03]
[null,null,null,null,null,null,null,null,null,null,null,"Jun",6.6,3.3,138.9,3.31,6.56]
[null,null,null,null,null,null,null,null,null,null,null,"Jul",6.5,3.2,123.7,3.16,8.77]
[null,null,null,null,null,null,null,null,null,null,null,"Aug",9.9,3.5,123.2,3.52,9.9499999999999993]
[null,null,null,null,null,null,null,null,null,null,null,"Sep",7,3.2,151,3.19,7.04]
[null,null,null,null,null,null,null,null,null,null,null,"Oct",4.3,2.4,85.2,2.4,4.3499999999999996]
[null,null,null,null,null,null,null,null,null,null,null,"Nov",3,2.2000000000000002,52.6,2.19,3]
[null,null,null,null,null,null,null,null,null,null,null,"Dec",5.7,2.1,162.69999999999999,2.1,5.7]
[null,null,null,null,null,null,null,null,null,null,null,"Annual",{"$f":"AVERAGE(M25:M36)","v":6.6000000000000005},{"$f":"AVERAGE(N25:N36)","v":3.0166666666666671},{"$f":"MAX(O25:O36)","v":287.60000000000002},{"$f":"AVERAGE(P25:P36)","v":3.0083333333333333},{"$f":"MAX(Q25:Q36)","v":13.34}]
[]
[null,null,null,null,null,null,null,null,null,null,{"$f":"+A8","v":2024},"mg/Nm3","Highest daily 95%ile 10-min average","Monthly mean of 10-min averages","Highest 10-min average","Monthly mean of  daily averages","Highest daily average"]
[null,null,null,null,null,null,null,null,null,null,"A3","Jan"]
[null,null,null,null,null,null,null,null,null,null,null,"Feb"]
[null,null,null,null,null,null,null,null,null,null,null,"Mar"]
[null,null,null,null,null,null,null,null,null,null,null,"Apr"]
[null,null,null,null,null,null,null,null,null,null,null,"May"]
[null,null,null,null,null,null,null,null,null,null,null,"Jun"]
[null,null,null,null,null,null,null,null,null,null,null,"Jul"]
[null,null,null,null,null,null,null,null,null,null,null,"Aug"]
[null,null,null,null,null,null,null,null,null,null,null,"Sep"]
[null,null,null,null,null,null,null,null,null,null,null,"Oct"]
[null,null,null,null,null,null,null,null,null,null,null,"Nov"]
["Comments :",null,null,null,null,null,null,null,null,null,null,"Dec"]
["Environment Agency explanatory note: The 10-minute average ELV is based on the “95th percentile”. In this case this means that 95% of the 10 minute averages in the relevant 24-hour period (i.e. 137) must be below 150 mg/Nm3, and 5% (i.e. 7) are allowed to be any value above 150 mg/Nm3. Whilst we expect operators to minimise CO emissions at all times, it is perfectly acceptable for the value of the maximum 10-minute average to be above 150 mg/Nm3, provided the 95th percentile ELV has been met for that period. ",null,null,null,null,null,null,null,null,null,null,"Annual",{"$f":"AVERAGE(M40:M51)","v":{"$error":"#DIV/0!"}},null,{"$f":"MAX(O40:O51)","v":0},{"$f":"AVERAGE(P40:P51)","v":{"$error":"#DIV/0!"}},{"$f":"MAX(Q40:Q51)","v":0}]
[]
[null,null,null,null,null,null,null,null,null,null,{"$f":"+A8","v":2024},"mg/Nm3","Highest daily 95%ile 10-min average","Monthly mean of 10-min averages","Highest 10-min average","Monthly mean of  daily averages","Highest daily average"]
[null,null,null,null,null,null,null,null,null,null,"A4","Jan"]
[null,null,null,null,null,null,null,null,null,null,null,"Feb"]
[null,null,null,null,null,null,null,null,null,null,null,"Mar"]
[null,null,null,null,null,null,null,null,null,null,null,"Apr"]
[null,null,null,null,null,null,null,null,null,null,null,"May"]
[null,null,null,null,null,null,null,null,null,null,null,"Jun"]
[null,null,null,null,null,null,null,null,null,null,null,"Jul"]
[null,null,null,null,null,null,null,null,null,null,null,"Aug"]
[null,null,null,null,null,null,null,null,null,null,null,"Sep"]
[null,null,null,null,null,null,null,null,null,null,null,"Oct"]
[null,null,null,null,null,null,null,null,null,null,null,"Nov"]
[null,null,null,null,null,null,null,null,null,null,null,"Dec"]
[null,null,null,null,null,null,null,null,null,null,null,"Annual",{"$f":"AVERAGE(M55:M66)","v":{"$error":"#DIV/0!"}},null,{"$f":"MAX(O55:O66)","v":0},{"$f":"AVERAGE(P55:P66)","v":{"$error":"#DIV/0!"}},{"$f":"MAX(Q55:Q66)","v":0}]
[]
[null,null,null,null,null,null,null,null,null,null,{"$f":"+A8","v":2024},"mg/Nm3","95%ile 10-min avg maximum","Monthly CO 10-min avg mean","10-min avg maximum","Monthly daily mean","Monthly daily maximum"]
[null,null,null,null,null,null,null,null,null,null,"A5","Jan"]
[null,null,null,null,null,null,null,null,null,null,null,"Feb"]
[null,null,null,null,null,null,null,null,null,null,null,"Mar"]
[null,null,null,null,null,null,null,null,null,null,null,"Apr"]
[null,null,null,null,null,null,null,null,null,null,null,"May"]
[null,null,null,null,null,null,null,null,null,null,null,"Jun"]
[null,null,null,null,null,null,null,null,null,null,null,"Jul"]
[null,null,null,null,null,null,null,null,null,null,null,"Aug"]
[null,null,null,null,null,null,null,null,null,null,null,"Sep"]
[null,null,null,null,null,null,null,null,null,null,null,"Oct"]
[null,null,null,null,null,null,null,null,null,null,null,"Nov"]
[null,null,null,null,null,null,null,null,null,null,null,"Dec"]
[null,null,null,null,null,null,null,null,null,null,null,"Annual",{"$f":"AVERAGE(M70:M81)","v":{"$error":"#DIV/0!"}},null,{"$f":"MAX(O70:O81)","v":0},{"$f":"AVERAGE(P70:P81)","v":{"$error":"#DIV/0!"}},{"$f":"MAX(Q70:Q81)","v":0}]

{"sheet":"NH3","index":22,"n_rows":79,"n_cols":15,"rows_kept":79,"cut":false,"hidden":false,"merged":[[66,9,78,9],[4,1,4,3],[4,4,4,6],[4,9,4,14],[6,9,18,9],[21,9,33,9],[36,9,48,9],[47,0,47,6],[48,0,51,6],[51,9,63,9],[18,4,18,6]]}
[{"$f":"+'Cover Page'!$B$29","v":"Annual Performance Report 2024"},null,null,null,{"$f":"+'Cover Page'!$B$33","v":"Kemsley Generating Station"}]
[]
["Monitoring of Ammnonia emissions ",null,null,"Whole Installation",null,null,"See  Notes in Cell Q3",null,null,{"$f":"+A3","v":"Monitoring of Ammnonia emissions "},null,null,null,"Per Combustion Line"]
[]
[{"$f":"+'Cover Page'!C39","v":2024},"1/2 Hourly Reference Periods",null,null,"Daily Reference Periods"]
["mg/Nm3","1/2 hourly NH3 ELV","Monthly mean of half-hourly averages","Highest half- hourly average","Daily NH3 ELV","Monthly mean of  daily averages","Highest daily average",null,null,{"$f":"+A5","v":2024},"mg/Nm3","Monthly mean of half-hourly averages","Highest half- hourly average","Monthly mean of  daily averages","Highest daily average"]
["Jan","None",{"$f":"AVERAGE(L7,L22)","v":0.35},{"$f":"MAX(M7,M22)","v":2},15,{"$f":"AVERAGE(N7,N22)","v":0.32},{"$f":"MAX(O7,O22)","v":1.07},null,null,"A1","Jan",0.6,2,0.56000000000000005,1.07]
["Feb",{"$f":"+B7","v":"None"},{"$f":"AVERAGE(L8,L23)","v":0.70000000000000007},{"$f":"MAX(M8,M23)","v":67.3},15,{"$f":"AVERAGE(N8,N23)","v":0.68500000000000005},{"$f":"MAX(O8,O23)","v":5.66},null,null,null,"Feb",1.3,67.3,1.29,5.66]
["Mar",{"$f":"+B8","v":"None"},{"$f":"AVERAGE(L9,L24)","v":0.5},1.9,15,0.49,{"$f":"MAX(O9,O24)","v":1.21},null,null,null,"Mar",0.8,1.9,0.83,1.21]
["Apr","None",0.35,{"$f":"MAX(M10,M25)","v":1.5},15,{"$f":"AVERAGE(N10,N25)","v":0.31999999999999995},0.88,null,null,null,"Apr",0.6,1.5,0.56999999999999995,0.88]
["May","None",0.25,{"$f":"MAX(M11,M26)","v":2},15,0.09,1.46,null,null,null,"May",0.4,2,0.09,1.46]
["Jun","None",{"$f":"AVERAGE(L12,L27)","v":0.2},1.7,15,0.19500000000000001,0.89,null,null,null,"Jun",0.3,1.7,0.34,0.89]
["Jul","None",0.2,4.4000000000000004,15,0.22,0.94,null,null,null,"Jul",0.3,1.8,0.33,0.65]
["Aug","None",0.3,1.4,15,0.27500000000000002,0.66,null,null,null,"Aug",0.5,1.4,0.49,0.66]
["Sep","None",0.5,3.7,15,0.505,1.45,null,null,null,"Sep",0.9,3.7,0.94,1.45]
["Oct","None",0.6,6.5,15,0.61499999999999999,2.46,null,null,null,"Oct",1,6.5,1.03,2.46]
["Nov","None",0.2,2.5,15,0.2,0.63,null,null,null,"Nov",0.3,2.5,0.31,0.63]
["Dec","None",{"$f":"AVERAGE(L18,L33)","v":0.3},{"$f":"MAX(M18,M33)","v":3.4},15,0.29499999999999998,1.23,null,null,null,"Dec",0.5,3.4,0.47,1.23]
[null,null,null,null,null,null,null,null,null,null,"Annual",{"$f":"AVERAGE(L7:L18)","v":0.625},{"$f":"MAX(M7:M18)","v":67.3},{"$f":"AVERAGE(N7:N18)","v":0.60416666666666663},{"$f":"MAX(O7:O18)","v":5.66}]
[]
[null,null,null,null,null,null,null,null,null,{"$f":"+A5","v":2024},"mg/Nm3","Monthly mean of half-hourly averages","Highest half- hourly average","Monthly mean of  daily averages","Highest daily average"]
[null,null,null,null,null,null,null,null,null,"A2","Jan",0.1,0.4,0.08,0.16]
[null,null,null,null,null,null,null,null,null,null,"Feb",0.1,0.7,0.08,0.14000000000000001]
[null,null,null,null,null,null,null,null,null,null,"Mar",0.2,1,0.15,0.34]
[null,null,null,null,null,null,null,null,null,null,"Apr",0.1,0.9,7.0000000000000007E-2,0.25]
[null,null,null,null,null,null,null,null,null,null,"May",0.1,0.4,0.09,0.19]
[null,null,null,null,null,null,null,null,null,null,"Jun",0.1,0.2,0.05,0.11]
[null,null,null,null,null,null,null,null,null,null,"Jul",0.1,4.4000000000000004,0.11,0.94]
[null,null,null,null,null,null,null,null,null,null,"Aug",0.1,0.4,0.06,0.15]
[null,null,null,null,null,null,null,null,null,null,"Sep",0.1,0.5,7.0000000000000007E-2,0.14000000000000001]
[null,null,null,null,null,null,null,null,null,null,"Oct",0.2,3.1,0.2,1.8]
[null,null,null,null,null,null,null,null,null,null,"Nov",0.1,0.4,0.09,0.17]
[null,null,null,null,null,null,null,null,null,null,"Dec",0.1,1,0.12,0.22]
[null,null,null,null,null,null,null,null,null,null,"Annual",{"$f":"AVERAGE(L22:L33)","v":0.11666666666666668},{"$f":"MAX(M22:M33)","v":4.4000000000000004},{"$f":"AVERAGE(N22:N33)","v":9.7499999999999989E-2},{"$f":"MAX(O22:O33)","v":1.8}]
[]
[null,null,null,null,null,null,null,null,null,{"$f":"+A5","v":2024},"mg/Nm3","Monthly mean of half-hourly averages","Highest half- hourly average","Monthly mean of  daily averages","Highest daily average"]
[null,null,null,null,null,null,null,null,null,"A3","Jan"]
[null,null,null,null,null,null,null,null,null,null,"Feb"]
[null,null,null,null,null,null,null,null,null,null,"Mar"]
[null,null,null,null,null,null,null,null,null,null,"Apr"]
[null,null,null,null,null,null,null,null,null,null,"May"]
[null,null,null,null,null,null,null,null,null,null,"Jun"]
[null,null,null,null,null,null,null,null,null,null,"Jul"]
[null,null,null,null,null,null,null,null,null,null,"Aug"]
[null,null,null,null,null,null,null,null,null,null,"Sep"]
[null,null,null,null,null,null,null,null,null,null,"Oct"]
[null,null,null,null,null,null,null,null,null,null,"Nov"]
["Comments :",null,null,null,null,null,null,null,null,null,"Dec"]
["An indicated ELV value of zero in the table above means that no ammonia limit is/was set in the permit.  ",null,null,null,null,null,null,null,null,null,"Annual",{"$f":"AVERAGE(L37:L48)","v":{"$error":"#DIV/0!"}},{"$f":"MAX(M37:M48)","v":0},{"$f":"AVERAGE(N37:N48)","v":{"$error":"#DIV/0!"}},{"$f":"MAX(O37:O48)","v":0}]
[]
[null,null,null,null,null,null,null,null,null,{"$f":"+A5","v":2024},"mg/Nm3","Monthly mean of half-hourly averages","Highest half- hourly average","Monthly mean of  daily averages","Highest daily average"]
[null,null,null,null,null,null,null,null,null,"A4","Jan"]
[null,null,null,null,null,null,null,null,null,null,"Feb"]
[null,null,null,null,null,null,null,null,null,null,"Mar"]
[null,null,null,null,null,null,null,null,null,null,"Apr"]
[null,null,null,null,null,null,null,null,null,null,"May"]
[null,null,null,null,null,null,null,null,null,null,"Jun"]
[null,null,null,null,null,null,null,null,null,null,"Jul"]
[null,null,null,null,null,null,null,null,null,null,"Aug"]
[null,null,null,null,null,null,null,null,null,null,"Sep"]
[null,null,null,null,null,null,null,null,null,null,"Oct"]
[null,null,null,null,null,null,null,null,null,null,"Nov"]
[null,null,null,null,null,null,null,null,null,null,"Dec"]
[null,null,null,null,null,null,null,null,null,null,"Annual",{"$f":"AVERAGE(L52:L63)","v":{"$error":"#DIV/0!"}},{"$f":"MAX(M52:M63)","v":0},{"$f":"AVERAGE(N52:N63)","v":{"$error":"#DIV/0!"}},{"$f":"MAX(O52:O63)","v":0}]
[]
[null,null,null,null,null,null,null,null,null,{"$f":"+A5","v":2024},"mg/Nm3","Monthly mean of half-hourly averages","Highest half- hourly average","Monthly mean of  daily averages","Highest daily average"]
[null,null,null,null,null,null,null,null,null,"A5","Jan"]
[null,null,null,null,null,null,null,null,null,null,"Feb"]
[null,null,null,null,null,null,null,null,null,null,"Mar"]
[null,null,null,null,null,null,null,null,null,null,"Apr"]
[null,null,null,null,null,null,null,null,null,null,"May"]
[null,null,null,null,null,null,null,null,null,null,"Jun"]
[null,null,null,null,null,null,null,null,null,null,"Jul"]
[null,null,null,null,null,null,null,null,null,null,"Aug"]
[null,null,null,null,null,null,null,null,null,null,"Sep"]
[null,null,null,null,null,null,null,null,null,null,"Oct"]
[null,null,null,null,null,null,null,null,null,null,"Nov"]
[null,null,null,null,null,null,null,null,null,null,"Dec"]
[null,null,null,null,null,null,null,null,null,null,"Annual",{"$f":"AVERAGE(L67:L78)","v":{"$error":"#DIV/0!"}},{"$f":"MAX(M67:M78)","v":0},{"$f":"AVERAGE(N67:N78)","v":{"$error":"#DIV/0!"}},{"$f":"MAX(O67:O78)","v":0}]

{"sheet":"Template changes log","index":23,"n_rows":17,"n_cols":3,"rows_kept":17,"cut":false,"hidden":false,"merged":[]}
["Log of changes to template (Environment Agency use only)"]
[]
["Date","Description of change","New version number and date"]
["2024-01-16","Air (periodic) tab: corrected default O2 reference from 6 to 11% ","Version 23.5a (for incinerators) - 16/01/2024"]
["2024-09-23","Air (periodic) tab: corrected symbol for Thallium to Tl"]
["2024-09-23","Air (periodic) tab: removed last year's references to different emission limit values applying from 03/12/23 and updated all relevant ELVs"]
["2024-09-23","Tabs for continuously monitored pollutants (HCl, SO2 etc.): changed terminology in table headings to improve clarity"]
["2024-09-23","Tabs for continuously monitored pollutants (HCl, SO2 etc.): removed last year's references to different emission limit values applying from 03/12/23 and updated all relevant ELVs"]
["2024-09-23","Perf 1 tab: updated formula for water usage to report m3 rather than litres and corrected error with formula copying operator name"]
["2024-09-23","Operational Summary tab: table added on start-up's and shut-downs"]
["2024-09-23","Operational Summary tab: table added on dioxins and mercury protocols"]
["2024-09-23","Operational Summary tab: table added on AST, QAL 2 and calibration functions"]
["2024-09-23","CO2 N2O tab: various changes made to notes to reflect the fact that most plants should now have calibrated CEMS and flow meters + some have C14 samplers and more up to date industry data","Version 24a (for incinerators) - 23/09/24"]
["2024-01-08","CO2 N2O tab: Changed the N2O CO2 equivalence factor from 298 to 265 in line with recently updated government greenhouse gas figures: https://www.gov.uk/government/publications/greenhouse-gas-reporting-conversion-factors-2024"]
["2024-01-08","CO2 N2O tab: Added an additional requirement for municipal EfW plants to state the yearly average biogenic percentage of the waste by mass, and reference to a document which sets out a methodology for calculating NCV of waste from the results of C14 sampling."]
["2024-01-08","Permit Compliance tab: Two additional columns added + explanatory notes to the table entitled \"Summary of non-compliances under the permit\" to allow CCS scores to be stated where relevant. "]
["2024-01-08","Residue Quality tab: Note added explaining application of TOC and LOI limits and asking operators to report both metrics where measured. ","Version 24.1a (for incinerators) - 08/11/24"]

{"sheet":"Sheet1","index":24,"n_rows":0,"n_cols":0,"rows_kept":0,"cut":false,"hidden":false,"merged":[]}